Workbook

Sheet Orçamento Sintético (2)
I1: BDI SERVIÇOS | J1: 27,75¨%
I2: BDI MATERIAIS | J2: 0.1565
I3: BANCOS
I4: SINAPI - 07/2023 - BA SBC - 09/2023 - BA SICRO3 - 04/2023 - BA ORSE - 06/2023 - SE SEINFRA - 028 - CE EMBASA - 05/2023 - BA EMOP - 07/2023 - RJ
B5: ITEM | C5: CÓDIGO | D5: BANCO | E5: DESCRIÇÃO | F5: UNID | G5: QUANTIDADE | H5: VALOR UNITÁRIO | I5: VALOR UNITÁRIO | J5: TOTAL
B6: 1.0.1 | E6: CAIXA DE CAPTAÇÃO DE ÁGUA BRUTA | J6: =SUM(J7:J11) -> 42801.46
B7: 1.0.1.1 | C7: M011713013 | D7: EMBASA | E7: EPFAV10 FOFO DN 200 46,000 KG | F7: PC | G7: 1 | H7: 1168.9 | I7: 1351.83 | J7: =ROUND(G7*I7,2) -> 1351.83
B8: 1.0.1.2 | C8: M010801021 | D8: EMBASA | E8: TCL FOFO DN 300 57,100 KG | F8: M | G8: 0.35 | H8: 1224.69 | I8: 1416.35 | J8: =ROUND(G8*I8,2) -> 495.72
B9: 1.0.1.4 | C9: M012901005 | D9: EMBASA | E9: CQUAW FOFO L X H DN 300 150,000 KG | F9: PC | G9: 1 | H9: 31955.55 | I9: 36956.59 | J9: 36956.59
B10: 1.0.1.4.1 | C10: M013304005 | D10: EMBASA | E10: HQC D = 1 3/4' 12 KG/M | F10: M | G10: 1 | H10: 1592.94 | I10: 1842.23 | J10: 1842.23
B11: 1.0.1.4.2 | C11: M013310013 | D11: EMBASA | E11: PMSI FOFO SIMILAR AO MOD. 12 DA BARBARA 73,000 KG | F11: PC | G11: 1 | H11: 1863.46 | I11: 2155.09 | J11: 2155.09
B12: 1.0.1.4.3 | E12: UNIDADE DO SISTEMA: ADUTORA DE ÁGUA BRUTA | J12: =J13+J22+J30 -> 393222.5
B13: 1.0.1.4.4 | E13: ADUTORA DE ÁGUA BRUTA | J13: =SUM(J14:J21) -> 65370.3
B14: 1.0.1.4.4.1 | C14: M010901013 | D14: EMBASA | E14: C90 JGS FOFO DN 200 35,200 KG | F14: PC | G14: 1 | H14: 831.54 | I14: 961.67 | J14: 961.67
B15: 1.0.1.4.4.2 | C15: M010902013 | D15: EMBASA | E15: C45 JGS FOFO DN 200 27,300 KG | F15: PC | G15: 5 | H15: 588.78 | I15: 680.92 | J15: 3404.6
B16: 1.0.1.4.4.3 | C16: M010903013 | D16: EMBASA | E16: C22 JGS FOFO DN 200 29,200 KG | F16: PC | G16: 2 | H16: 552.24 | I16: 638.66 | J16: 1277.32
B17: 1.0.1.4.5 | C17: SIAA-56 | D17: PRÓPRIO | E17: TUBO 200MM DEFOFO PN 60 | F17: M | G17: 480 | H17: 72.03 | I17: 83.3 | J17: 39984
B18: 1.0.1.4.6 | C18: M013000098 | D18: EMBASA | E18: VALVULA FOFO - CONTROLADORA DE NIVEL MAXIMO DN 150 (6") | F18: PC | G18: 1 | H18: 9282.97 | I18: 10735.75 | J18: 10735.75
B19: 1.0.1.4.7 | C19: 5166 | D19: ORSE | E19: ANEL DE BORRACHA P/ TUBO DE PVC DEFOFO, D= 200MM UN | F19: UN | G19: 82 | H19: 37 | I19: 42.79 | J19: 3508.78
B20: 1.0.1.4.8 | C20: M011709025 | D20: EMBASA | E20: RFF10 FOFO DN 200 X 150 22,000 KG | F20: PC | G20: 2 | H20: 586.42 | I20: 678.19 | J20: 1356.38
B21: 1.0.1.4.9 | C21: 00007745 | D21: SINAPI | E21: TUBO DE CONCRETO ARMADO PARA AGUAS PLUVIAIS, CLASSE PA-1, COM ENCAIXE PONTA E BOLSA, DIAMETRO NOMINAL DE 400 MM | F21: M | G21: 30 | H21: 119.38 | I21: 138.06 | J21: 4141.8
B22: 1.0.1.4.10 | E22: DESCARGAS | J22: =SUM(J23:J29) -> 167233
B23: 1.0.1.4.11 | C23: M011301025 | D23: EMBASA | E23: T JGSF10 FOFO DN 200 X 100 39,100 KG | F23: PC | G23: 20 | H23: 1118.01 | I23: 1292.97 | J23: 25859.4
B24: 1.0.1.4.12 | C24: M012201041 | D24: EMBASA | E24: RCFC10 FOFO DN 100 37,000 KG | F24: PC | G24: 20 | H24: 5598.27 | I24: 6474.39 | J24: 129487.8
B25: 1.0.1.4.13 | C25: 00000047 | D25: SINAPI | E25: ADAPTADOR, PVC PBA, BOLSA/ROSCA, JE, DN 100 / DE 110 MM | F25: UN | G25: 20 | H25: 63.21 | I25: 73.1 | J25: 1462
B26: 1.0.1.4.14 | C26: M011304005 | D26: EMBASA | E26: EFJGS10 FOFO DN 100 10,000 KG | F26: PC | G26: 20 | H26: 253.14 | I26: 292.75 | J26: 5855
B27: 1.0.1.4.15 | C27: 00011289 | D27: SINAPI | E27: TAMPAO FOFO ARTICULADO P/ REGISTRO, CLASSE A15 CARGA MAX 1,5 T, *200 X 200* MM | F27: UN | G27: 20 | H27: 99.23 | I27: 114.75 | J27: 2295
B28: 1.0.1.8 | C28: M011717009 | D28: EMBASA | E28: ABF10 P/ DN 100 0,040 KG | F28: PC | G28: 20 | H28: 3.54 | I28: 4.09 | J28: 81.8
B29: 1.0.1.8.1 | C29: M011716009 | D29: EMBASA | E29: PPF10 P/ DN 100 (16 X 80 MM) 0,175 KG | F29: PC | G29: 320 | H29: 5.93 | I29: 6.85 | J29: 2192
B30: 1.0.1.8.2 | E30: VENTOSAS | J30: =SUM(J31:J36) -> 160619.2
B31: 1.0.1.8.5 | C31: M011006013 | D31: EMBASA | E31: LCR JM FOFO DN 200 40,000 KG | F31: PC | G31: 20 | H31: 819.38 | I31: 947.61 | J31: 18952.2
B32: 1.0.1.8.6 | C32: M011301017 | D32: EMBASA | E32: T JGSF10 FOFO DN 200 X 50 30,100 KG | F32: PC | G32: 20 | H32: 1162.3 | I32: 1344.19 | J32: 26883.8
B33: 2.1 | C33: M012201033 | D33: EMBASA | E33: RCFC10 FOFO DN 50 13,000 KG | F33: PC | G33: 20 | H33: 3582.91 | I33: 4143.63 | J33: 82872.6
B34: 2.1.1 | C34: M012504001 | D34: EMBASA | E34: VTF16 AGUA C/ FLANGES FOFO DN 50 21,000 KG | F34: PC | G34: 20 | H34: 1330.64 | I34: 1538.88 | J34: 30777.6
B35: 2.1.1.1 | C35: M011717001 | D35: EMBASA | E35: ABF10 P/ DN 50 0,020 KG | F35: PC | G35: 20 | H35: 1.6 | I35: 1.85 | J35: 37
B36: 2.1.1.2 | C36: M011716001 | D36: EMBASA | E36: PPF10 P/ DN 50 (16 X 80 MM) 0,175 KG | F36: PC | G36: 160 | H36: 5.93 | I36: 6.85 | J36: 1096
B37: 2.1.1.3 | E37: UNIDADE DO SISTEMA: ESTAÇÃO DE TRATAMENTO DE ÁGUA | J37: =J38 -> 40505.86
B38: 2.1.1.4 | E38: RESERVATÓRIO ELEVADO - RED 40M³ | J38: =SUM(J39:J57) -> 40505.86
B39: 2.1.1.5 | C39: 00007693 | D39: SINAPI | E39: TUBO ACO GALVANIZADO COM COSTURA, CLASSE MEDIA, DN 4", E = 4,50* MM, PESO 12,10* KG/M (NBR 5580) | F39: M | G39: 2 | H39: 227.68 | I39: 263.31 | J39: 526.62
B40: 2.1.1.6 | C40: D309701308 | D40: EMBASA | E40: CAIXA D'AGUA 20.000L EM POLIETILENO | F40: UN | G40: 2 | H40: 7003.3 | I40: 8099.31 | J40: 16198.62
B41: 2.1.1.7 | C41: 00003271 | D41: SINAPI | E41: FLANGE SEXTAVADO DE FERRO GALVANIZADO, COM ROSCA BSP, DE 4" | F41: UN | G41: 2 | H41: 230.59 | I41: 266.67 | J41: 533.34
B42: 2.1.1.8 | C42: 00021015 | D42: SINAPI | E42: TUBO ACO GALVANIZADO COM COSTURA, CLASSE LEVE, DN 80 MM ( 3"), E = 3,35 MM, *7,32* KG/M (NBR 5580) | F42: M | G42: 47 | H42: 143.86 | I42: 166.37 | J42: 7819.39
B43: 2.1.1.9 | C43: 00001792 | D43: SINAPI | E43: CURVA 90 GRAUS DE FERRO GALVANIZADO, COM ROSCA BSP FEMEA, DE 3" | F43: UN | G43: 11 | H43: 362.02 | I43: 418.67 | J43: 4605.37
B44: 2.1.1.10 | C44: 00000043 | D44: SINAPI | E44: ADAPTADOR, PVC PBA, PONTA/ROSCA, JE, DN 75 / DE 85 MM | F44: UN | G44: 2 | H44: 42.28 | I44: 48.89 | J44: 97.78
B45: 3.1 | C45: M020501013 | D45: EMBASA | E45: AD PVC PBA BR JE DN 75 | F45: PC | G45: 1 | H45: 33.7 | I45: 38.97 | J45: 38.97
B46: 3.1.1 | C46: 00006012 | D46: SINAPI | E46: REGISTRO GAVETA BRUTO EM LATAO FORJADO, BITOLA 3 " (REF 1509) | F46: UN | G46: 9 | H46: 328.99 | I46: 380.47 | J46: 3424.23
B47: 3.1.1.1 | C47: 00003268 | D47: SINAPI | E47: FLANGE SEXTAVADO DE FERRO GALVANIZADO, COM ROSCA BSP, DE 3" | F47: UN | G47: 6 | H47: 155.97 | I47: 180.37 | J47: 1082.22
B48: 3.1.1.2 | C48: 00004182 | D48: SINAPI | E48: NIPLE DE FERRO GALVANIZADO, COM ROSCA BSP, DE 3" | F48: UN | G48: 1 | H48: 102.34 | I48: 118.35 | J48: 118.35
B49: 3.1.1.3 | C49: 00000863 | D49: SINAPI | E49: CABO DE COBRE NU 35 MM2 MEIO-DURO | F49: M | G49: 17 | H49: 32.92 | I49: 38.07 | J49: 647.19
B50: 3.1.1.4 | C50: 003030 | D50: SBC | E50: ELETRODUTO ZINCADO ELETROLITICAMENTE (LEVE) NBR 13057 15MM 1/2" | F50: M | G50: 16 | H50: 5.66 | I50: 6.54 | J50: 104.64
B51: 3.1.1.5 | C51: 00041412 | D51: SINAPI | E51: CAPTOR FRANKLIN (4 PONTAS), EM LATAO CROMADO, H = 350 MM, DUAS DESCIDAS | F51: UN | G51: 1 | H51: 118.17 | I51: 136.66 | J51: 136.66
B52: 3.1.1.6 | C52: M109500011 | D52: EMBASA | E52: FIXADOR UNIVERSAL DE SPDA P/ CABO 35MM2 | F52: UN | G52: 8 | H52: 17.08 | I52: 19.75 | J52: 158
B53: 3.1.1.7 | E53: LEITOS DE SECAGEM | J53: 0
B54: 3.1.1.8 | C54: 00038052 | D54: SINAPI | E54: TUBO DRENO, CORRUGADO, ESPIRALADO, FLEXIVEL, PERFURADO, EM POLIETILENO DE ALTA DENSIDADE (PEAD), DN 100 MM, (4") PARA DRENAGEM - EM ROLO (NORMA DNIT 093/2006 - E.M) | F54: M | G54: 14 | H54: 11.85 | I54: 13.7 | J54: 191.8
B55: 3.1.1.9 | C55: 00009840 | D55: SINAPI | E55: TUBO PVC, SERIE R, DN 150 MM, PARA ESGOTO OU AGUAS PLUVIAIS PREDIAL (NBR 5688) | F55: M | G55: 4.2 | H55: 55.85 | I55: 64.59 | J55: 271.28
B56: 3.1.1.10 | C56: 00038033 | D56: SINAPI | E56: TUBO PVC CORRUGADO, PAREDE DUPLA, JE, DN 200 MM/ DE 200 MM, REDE COLETORA ESGOTO | F56: M | G56: 3.5 | H56: 94.3 | I56: 109.05 | J56: 381.68
B57: 3.1.1.12 | C57: SIAA-04 | D57: PRÓPRIO | E57: STOP LOG EM FIBRA DE VIDRO DIMENSÕES: 0,70 X 0,60 X 0,05 | F57: UND | G57: 2 | H57: 1802.74 | I57: 2084.86 | J57: 4169.72
B58: 3.1.1.13 | E58: UNIDADE DO SISTEMA: ESTAÇÃO ELEVATÓRIA DE ÁGUA TRATADA | J58: =J59+J112 -> 444724.81
B59: 3.1.1.14 | E59: ESTAÇÃO ELEVATÓRIA DE ÁGUA TRATADA | J59: =SUM(J60:J111) -> 351268.34
B60: 3.1.1.15 | C60: M012800009 | D60: EMBASA | E60: VPCPD10 FOFO DN 150 30,000 KG | F60: PC | G60: 1 | H60: 1515.08 | I60: 1752.19 | J60: 1752.19
B61: 3.1.1.16 | C61: M011713009 | D61: EMBASA | E61: EPFAV10 FOFO DN 150 32,000 KG | F61: PC | G61: 1 | H61: 892.84 | I61: 1032.56 | J61: 1032.56
B62: 3.1.1.17 | C62: M011707021 | D62: EMBASA | E62: TFF10 FOFO DN 150 X 50 26,000 KG | F62: PC | G62: 2 | H62: 783.85 | I62: 906.52 | J62: 1813.04
B63: 3.1.1.18 | C63: M012501001 | D63: EMBASA | E63: VSCF25 FOFO DN 50 5,800 KG | F63: PC | G63: 2 | H63: 461.4 | I63: 533.6 | J63: 1067.2
B64: 3.1.1.19 | C64: M011707033 | D64: EMBASA | E64: TFF10 FOFO DN 150 X 150 32,000 KG | F64: PC | G64: 2 | H64: 725.65 | I64: 839.21 | J64: 1678.42
B65: 3.1.1.20 | C65: M011701013 | D65: EMBASA | E65: TOF10 FOFO L = 0,25M DN 150 24,000 KG | F65: PC | G65: 5 | H65: 512.16 | I65: 592.31 | J65: 2961.55
B66: 3.1.2 | C66: M011703013 | D66: EMBASA | E66: C90FF10 FOFO DN 150 18,000 KG | F66: PC | G66: 6 | H66: 561.42 | I66: 649.28 | J66: 3895.68
B67: 3.1.2.1 | C67: M011709013 | D67: EMBASA | E67: RFF10 FOFO DN 150 X 80 15,850 KG | F67: PC | G67: 2 | H67: 516.28 | I67: 597.07 | J67: 1194.14
B68: 3.1.3 | C68: M012101005 | D68: EMBASA | E68: JDTA10 DN 150 35,000 KG | F68: PC | G68: 2 | H68: 2710.23 | I68: 3134.38 | J68: 6268.76
B69: 3.1.3.1 | C69: M012603013 | D69: EMBASA | E69: VRPD25 FOFO DN 150 19,000 KG | F69: PC | G69: 2 | H69: 5157.18 | I69: 5964.27 | J69: 11928.54
B70: 4.1 | C70: M011704013 | D70: EMBASA | E70: C45FF10 FOFO DN 150 17,000 KG | F70: PC | G70: 2 | H70: 504.99 | I70: 584.02 | J70: 1168.04
B71: 4.1.1 | C71: M011701081 | D71: EMBASA | E71: TOF10 FOFO L = 0,50M DN 150 32,000 KG | F71: PC | G71: 1 | H71: 661.97 | I71: 765.56 | J71: 765.56
B72: 4.1.1.1 | C72: M010501141 | D72: EMBASA | E72: TFL10 FOFO DN 150 X 5,80 166,800 KG | F72: PC | G72: 1 | H72: 4197.41 | I72: 4854.3 | J72: =ROUND(G72*I72,2) -> 4854.3
B73: 4.1.1.2 | C73: M010501109 | D73: EMBASA | E73: TFL10 FOFO DN 150 X 2,00 68,000 KG | F73: PC | G73: 1 | H73: 2291.35 | I73: 2649.94 | J73: 2649.94
B74: 4.1.1.3 | C74: M010501101 | D74: EMBASA | E74: TFL10 FOFO DN 150 X 1,00 42,000 KG | F74: PC | G74: 1 | H74: 1688.25 | I74: 1952.46 | J74: 1952.46
B75: 4.1.1.4 | C75: M012201045 | D75: EMBASA | E75: RCFC10 FOFO DN 150 60,000 KG | F75: PC | G75: 3 | H75: 6609.05 | I75: 7643.36 | J75: 22930.08
B76: 4.1.1.5 | C76: M010501105 | D76: EMBASA | E76: TFL10 FOFO DN 150 X 1,50 55,000 KG | F76: PC | G76: 1 | H76: 1878.26 | I76: 2172.2 | J76: 2172.2
B77: 4.1.1.6 | C77: M010501105 | D77: EMBASA | E77: TFL10 FOFO DN 150 X 1,50 55,000 KG | F77: PC | G77: 1 | H77: 1878.26 | I77: 2172.2 | J77: 2172.2
B78: 4.1.1.7 | C78: M010701105 | D78: EMBASA | E78: TFP10 FOFO DN 150 X 1,50 47,000 KG | F78: PC | G78: 1 | H78: 1586.24 | I78: 1834.48 | J78: 1834.48
B79: 4.1.1.8 | C79: M010909009 | D79: EMBASA | E79: L JGS FOFO DN 150 18,700 KG | F79: PC | G79: 1 | H79: 397.41 | I79: 459.6 | J79: 459.6
B80: 4.1.1.9 | C80: M011717001 | D80: EMBASA | E80: ABF10 P/ DN 50 0,020 KG | F80: PC | G80: 2 | H80: 1.6 | I80: 1.85 | J80: 3.7
B81: 4.1.1.10 | C81: M011717001 | D81: EMBASA | E81: ABF10 P/ DN 50 0,020 KG | F81: PC | G81: 24 | H81: 1.6 | I81: 1.85 | J81: 44.4
B82: 4.1.2 | C82: M011717005 | D82: EMBASA | E82: ABF10 P/ DN 80 0,030 KG | F82: PC | G82: 25 | H82: 2.71 | I82: 3.13 | J82: 78.25
B83: 4.1.2.1 | C83: M011717013 | D83: EMBASA | E83: ABF10 P/ DN 150 0,060 KG | F83: PC | G83: 35 | H83: 4.87 | I83: 5.63 | J83: 197.05
B84: 4.1.2.2 | C84: M011717013 | D84: EMBASA | E84: ABF10 P/ DN 150 0,060 KG | F84: PC | G84: 2 | H84: 4.87 | I84: 5.63 | J84: 11.26
B85: 4.1.2.3 | C85: M011716001 | D85: EMBASA | E85: PPF10 P/ DN 50 (16 X 80 MM) 0,175 KG | F85: PC | G85: 296 | H85: 5.93 | I85: 6.85 | J85: 2027.6
B86: 4.1.2.4 | C86: M011716013 | D86: EMBASA | E86: PPF10 P/ DN 150 (20 X 90 MM) 0,338 KG | F86: PC | G86: 280 | H86: 10.81 | I86: 12.5 | J86: 3500
B87: 4.1.3 | C87: M012800001 | D87: EMBASA | E87: VPCPD10 FOFO DN 75 12,000 KG | F87: PC | G87: 1 | H87: 1045.17 | I87: 1208.73 | J87: 1208.73
B88: 4.1.3.1 | C88: M011713001 | D88: EMBASA | E88: EPFAV10 FOFO DN 80 17,000 KG | F88: PC | G88: 1 | H88: 512.29 | I88: 592.46 | J88: 592.46
B89: 4.1.3.2 | C89: M010501045 | D89: EMBASA | E89: TFL10 FOFO DN 80 X 5,80 88,620 KG | F89: PC | G89: 1 | H89: 3043.82 | I89: 3520.17 | J89: 3520.17
B90: 4.1.3.5 | C90: M010501013 | D90: EMBASA | E90: TFL10 FOFO DN 80 X 2,00 35,800 KG | F90: PC | G90: 1 | H90: 1638.62 | I90: 1895.06 | J90: 1895.06
B91: 4.1.3.5 | C91: M011707001 | D91: EMBASA | E91: TFF10 FOFO DN 80 X 50 19,000 KG | F91: PC | G91: 2 | H91: 409.16 | I91: 473.19 | J91: 946.38
B92: 4.1.4 | C92: M012201033 | D92: EMBASA | E92: RCFC10 FOFO DN 50 13,000 KG | F92: PC | G92: 6 | H92: 3582.91 | I92: 4143.63 | J92: 24861.78
B93: 4.1.4.1 | C93: M012501001 | D93: EMBASA | E93: VSCF25 FOFO DN 50 5,800 KG | F93: PC | G93: 2 | H93: 461.4 | I93: 533.6 | J93: 1067.2
B94: 4.1.4.2 | C94: M011707005 | D94: EMBASA | E94: TFF10 FOFO DN 80 X 80 15,300 KG | F94: PC | G94: 2 | H94: 432.67 | I94: 500.38 | J94: 1000.76
B95: 4.1.4.3 | C95: M011709001 | D95: EMBASA | E95: RFF10 FOFO DN 80 X 50 8,400 KG | F95: PC | G95: 5 | H95: 283.55 | I95: 327.92 | J95: 1639.6
B96: 4.1.4.4 | C96: M011701001 | D96: EMBASA | E96: TOF10 FOFO L = 0,25M DN 50 7,500 KG | F96: PC | G96: 6 | H96: 279.11 | I96: 322.79 | J96: 1936.74
B97: 4.1.4.5 | C97: M011703001 | D97: EMBASA | E97: C90FF10 FOFO DN 50 6,000 KG | F97: PC | G97: 4 | H97: 181.01 | I97: 209.33 | J97: 837.32
B98: 4.1.4.6 | C98: M011709001 | D98: EMBASA | E98: RFF10 FOFO DN 80 X 50 8,400 KG | F98: PC | G98: 2 | H98: 283.55 | I98: 327.92 | J98: 655.84
B99: 4.1.4.7 | C99: M012001001 | D99: EMBASA | E99: JGI DN 50 4,600 KG | F99: PC | G99: 2 | H99: 315.75 | I99: 365.16 | J99: 730.32
B100: 4.1.4.8 | C100: M012603001 | D100: EMBASA | E100: VRPD25 FOFO DN 50 3,500 KG | F100: PC | G100: 2 | H100: 4421.65 | I100: 5113.63 | J100: 10227.26
B101: 4.1.4.9 | C101: M011701005 | D101: EMBASA | E101: TOF10 FOFO L = 0,25M DN 80 11,500 KG | F101: PC | G101: 1 | H101: 341.11 | I101: 394.49 | J101: 394.49
B102: 4.1.4.10 | C102: M012201037 | D102: EMBASA | E102: RCFC10 FOFO DN 75 26,000 KG | F102: PC | G102: 1 | H102: 4478.59 | I102: 5179.48 | J102: 5179.48
B103: 4.1.4.11 | C103: M011701073 | D103: EMBASA | E103: TOF10 FOFO L = 0,50M DN 80 15,000 KG | F103: PC | G103: 1 | H103: 401.78 | I103: 464.65 | J103: 464.65
B104: 4.1.4.12 | C104: M010501013 | D104: EMBASA | E104: TFL10 FOFO DN 80 X 2,00 35,800 KG | F104: PC | G104: 2 | H104: 1638.62 | I104: 1895.06 | J104: 3790.12
B105: 4.1.4.13 | C105: M011703005 | D105: EMBASA | E105: C90FF10 FOFO DN 80 9,500 KG | F105: PC | G105: 4 | H105: 274.47 | I105: 317.42 | J105: 1269.68
B106: 4.1.4.14 | C106: M010501009 | D106: EMBASA | E106: TFL10 FOFO DN 80 X 1,50 28,850 KG | F106: PC | G106: 1 | H106: 1443.47 | I106: 1669.37 | J106: 1669.37
B107: 4.1.4.15 | C107: 00000048 | D107: SINAPI | E107: ADAPTADOR, PVC PBA, BOLSA/ROSCA, JE, DN 50 / DE 60 MM | F107: UN | G107: 1 | H107: 16.49 | I107: 19.07 | J107: 19.07
B108: 4.1.4.16 | C108: M011707021 | D108: EMBASA | E108: TFF10 FOFO DN 150 X 50 26,000 KG | F108: PC | G108: 2 | H108: 783.85 | I108: 906.52 | J108: 1813.04
B109: 4.1.4.17 | C109: M011707001 | D109: EMBASA | E109: TFF10 FOFO DN 80 X 50 19,000 KG | F109: PC | G109: 2 | H109: 409.16 | I109: 473.19 | J109: 946.38
B110: 4.1.4.18 | C110: 3786 | D110: ORSE | E110: MANÔMETRO 0 A 10 KGF/CM2, D=100MM - CONEXÃO 1/2" BSP UN | F110: UN | G110: 2 | H110: 181.71 | I110: 210.14 | J110: 420.28
B111: 4.1.4.19 | C111: I9676 | D111: SEINFRA | E111: CONJ. MOTO-BOMBA SUBMERSÍVEL - POT=25CV | F111: UN | G111: 4 | H111: 44048.63 | I111: 50942.24 | J111: 203768.96
B112: 5.1.3.7 | E112: BARRILETE | J112: =SUM(J113:J142) -> 93456.47
B113: 5.1.3.8 | C113: 5709 | D113: ORSE | E113: TÊ EM FOFO C/ BOLSAS, JE, D= 200 X 200MM UN | F113: UN | G113: 1 | H113: 907.02 | I113: 1048.96 | J113: =ROUND(G113*I113,2) -> 1048.96
B114: 6.1.1 | C114: M010801013 | D114: EMBASA | E114: TCL FOFO DN 200 34,800 KG | F114: M | G114: 7 | H114: 824.74 | I114: 953.81 | J114: 6676.67
B115: 6.1.1.1 | C115: M010901013 | D115: EMBASA | E115: C90 JGS FOFO DN 200 35,200 KG | F115: PC | G115: 1 | H115: 831.54 | I115: 961.67 | J115: 961.67
B116: 6.1.1.1.1 | C116: M010702153 | D116: EMBASA | E116: TFP16 FOFO DN 200 X 1,50 62,200 KG | F116: PC | G116: 1 | H116: 1986.48 | I116: 2297.36 | J116: 2297.36
B117: 6.1.1.1.2 | C117: M011809021 | D117: EMBASA | E117: RFF16 FOFO DN 200 X 100 30,500 KG | F117: PC | G117: 1 | H117: 419.09 | I117: 484.67 | J117: 484.67
B118: 6.1.1.1.3 | C118: M011803017 | D118: EMBASA | E118: C90FF16 FOFO DN 200 28,000 KG | F118: PC | G118: 1 | H118: 965.17 | I118: 1116.21 | J118: 1116.21
B119: 6.1.1.1.4 | C119: M011807017 | D119: EMBASA | E119: TFF16 FOFO DN 100 X 100 18,500 KG | F119: PC | G119: 3 | H119: 542.86 | I119: 627.81 | J119: 1883.43
B120: 6.1.1.1.5 | C120: M011801009 | D120: EMBASA | E120: TOF16 FOFO L = 0,25M DN 100 14,000 KG | F120: PC | G120: 4 | H120: 446.46 | I120: 516.33 | J120: 2065.32
B121: 6.1.1.1.7 | C121: 12173 | D121: ORSE | E121: TUBO EM FOFO, C/ FLANGES PN 10 / 16, D= 100MM, L=0,38M TUBO EM FOFO, C/ FLANGES PN 10 / 16, D= 100MM UN | F121: M | G121: 2 | H121: 1027.5 | I121: 1188.3 | J121: 2376.6
B122: 6.1.1.1.8 | C122: M011803009 | D122: EMBASA | E122: C90FF16 FOFO DN 100 11,000 KG | F122: PC | G122: 6 | H122: 372.05 | I122: 430.27 | J122: 2581.62
B123: 6.1.1.1.9 | C123: 11353 | D123: ORSE | E123: REGISTRO CHATO COM FLANGE E VOLANTE DN 100 - FERRO FUNDIDO UN | F123: UN | G123: 8 | H123: 458.79 | I123: 530.59 | J123: 4244.72
B124: 6.1.1.1.10 | C124: M011810009 | D124: EMBASA | E124: REFF16 FOFO DN 100 X 80 9,500 KG | F124: PC | G124: 4 | H124: 314.01 | I124: 363.15 | J124: 1452.6
B125: 6.1.1.1.12 | C125: M011809005 | D125: EMBASA | E125: RFF16 FOFO DN 100 X 50 15,500 KG | F125: PC | G125: 4 | H125: 304.58 | I125: 352.24 | J125: 1408.96
B126: 6.1.1.1.13 | C126: J040001269 | D126: EMBASA | E126: MANOMETRO INDICADOR DM DO MOSTRADOR 100 MM FAIXA 0 - 300 MCA | F126: UN | G126: 4 | H126: 680 | I126: 786.42 | J126: 3145.68
B127: 6.1.1.1.14 | C127: M012610005 | D127: EMBASA | E127: VRFRW FOFO PN 16 DN 100 | F127: PC | G127: 4 | H127: 1505.28 | I127: 1740.85 | J127: 6963.4
B128: 6.1.1.1.15 | C128: M012102001 | D128: EMBASA | E128: JDTA16 DN 100 22,000 KG | F128: PC | G128: 4 | H128: 2014.16 | I128: 2329.37 | J128: 9317.48
B129: 6.1.1.1.17 | C129: M011804009 | D129: EMBASA | E129: C45FF16 FOFO DN 100 10,500 KG | F129: PC | G129: 4 | H129: 392.04 | I129: 453.39 | J129: 1813.56
B130: 6.1.1.1.18 | C130: M011809017 | D130: EMBASA | E130: RFF16 FOFO DN 150 X 100 15,500 KG | F130: PC | G130: 1 | H130: 405.76 | I130: 469.26 | J130: 469.26
B131: 6.1.1.1.20 | C131: M011804013 | D131: EMBASA | E131: C45FF16 FOFO DN 150 17,000 KG | F131: PC | G131: 1 | H131: 527.49 | I131: 610.04 | J131: 610.04
B132: 6.1.1.1.21 | C132: M011808017 | D132: EMBASA | E132: YFF16 FOFO DN 150 X 100 33,000 KG | F132: PC | G132: 4 | H132: 931.41 | I132: 1077.17 | J132: 4308.68
B133: 6.1.1.1.22 | C133: M012504005 | D133: EMBASA | E133: VTF16 AGUA C/ FLANGES FOFO DN 150 86,000 KG | F133: PC | G133: 1 | H133: 6188.63 | I133: 7157.15 | J133: 7157.15
B134: 6.1.1.1.24 | C134: M013018013 | D134: EMBASA | E134: VALVULA SUSTENT. FOFO C/ FLANGES PN 16 DN 150 | F134: PC | G134: 1 | H134: 5524.87 | I134: 6389.51 | J134: 6389.51
B135: 6.1.1.1.25 | C135: SIAA-47 | D135: PRÓPRIO | E135: HIDRÔMETRO TANGENCIAL IRRIGAÇÃO DN 150MM | F135: PC | G135: 1 | H135: 4490 | I135: 5192.68 | J135: 5192.68
B136: 6.1.1.1.25 | C136: M011801013 | D136: EMBASA | E136: TOF16 FOFO L = 0,25M DN 150 24,000 KG | F136: PC | G136: 4 | H136: 580.39 | I136: 671.22 | J136: 2684.88
B137: 6.1.1.1.26 | C137: M011803013 | D137: EMBASA | E137: C90FF16 FOFO DN 150 18,000 KG | F137: PC | G137: 1 | H137: 634.14 | I137: 733.38 | J137: 733.38
B138: 6.1.1.1.29 | C138: M010702109 | D138: EMBASA | E138: TFP16 FOFO DN 150 X 2,00 60,000 KG | F138: PC | G138: 1 | H138: 1893.5 | I138: 2189.83 | J138: 2189.83
B139: 6.1.1.2 | C139: M010901009 | D139: EMBASA | E139: C90 JGS FOFO DN 150 22,700 KG | F139: PC | G139: 1 | H139: 588.14 | I139: 680.18 | J139: 680.18
B140: 6.1.1.2.1 | C140: M010907033 | D140: EMBASA | E140: R PB JGS FOFO DN 300 X 150 29,600 KG | F140: PC | G140: 1 | H140: 770.12 | I140: 890.64 | J140: 890.64
B141: 6.1.1.3 | C141: M010801021 | D141: EMBASA | E141: TCL FOFO DN 300 57,100 KG | F141: M | G141: 7 | H141: 1224.69 | I141: 1416.35 | J141: 9914.45
B142: 6.1.1.3.1 | C142: 5718 | D142: ORSE | E142: TÊ EM FOFO C/ BOLSAS, JE, D= 300 X 300MM UN | F142: UN | G142: 1 | H142: 2072.53 | I142: 2396.88 | J142: 2396.88
E143: INTALAÇÕES ELÉTRICAS | J143: =J144+J165 -> 168769.44
B144: 4.1.4.20 | E144: INSTALAÇÃO ELÉTRICA (PADRÃO DE MEDIÇÃO) | J144: =SUM(J145:J164) -> 4732.96
B145: 4.1.5 | C145: SIAA-07 | D145: PRÓPRIO | E145: CAIXA PADRÃO TRIFASICA DE POLICARBONATO TIPO GRUPO "B" | F145: UND | G145: 2 | H145: 283.45 | I145: 327.8 | J145: 655.6
B146: 4.1.5.1 | C146: 3615 | D146: ORSE | E146: DISJUNTOR TRIPOLAR 60 A, PADRÃO NEMA ( LINHA PRETA ), CORRENTE INTERRUPÇÃO 5KA, REF.: ELETROMAR OU SIMILAR UN | F146: UN | G146: 2 | H146: 83.15 | I146: 96.16 | J146: 192.32
B147: 4.1.5.1 | C147: 3813 | D147: ORSE | E147: CABO DE COBRE ISOLADO HEPR (XLPE), 16MM², 1KV / 90º C M | F147: M | G147: 80 | H147: 14.6 | I147: 16.88 | J147: 1350.4
B148: 4.1.5.2 | C148: 00002684 | D148: SINAPI | E148: ELETRODUTO DE PVC RIGIDO ROSCAVEL DE 1 1/4 ", SEM LUVA | F148: M | G148: 8 | H148: 9.64 | I148: 11.14 | J148: 89.12
B149: 4.1.5.2 | C149: 3499 | D149: ORSE | E149: CABEÇOTE DE ALUMÍNIO DE 1 1/4" UN | F149: UN | G149: 4 | H149: 8.85 | I149: 10.23 | J149: 40.92
B150: 4.1.5.3 | C150: 00001902 | D150: SINAPI | E150: LUVA EM PVC RIGIDO ROSCAVEL, DE 1 1/4", PARA ELETRODUTO | F150: UN | G150: 8 | H150: 2.28 | I150: 2.63 | J150: 21.04
B151: 4.1.5.4 | C151: 00039211 | D151: SINAPI | E151: ARRUELA EM ALUMINIO, COM ROSCA, DE 1 1/4", PARA ELETRODUTO | F151: UN | G151: 12 | H151: 2.13 | I151: 2.46 | J151: 29.52
B152: 4.1.5.5 | C152: 00039177 | D152: SINAPI | E152: BUCHA EM ALUMINIO, COM ROSCA, DE 1 1/4", PARA ELETRODUTO | F152: UN | G152: 12 | H152: 2.44 | I152: 2.82 | J152: 33.84
B153: 4.1.5.6 | C153: 3490 | D153: ORSE | E153: HASTE COBREADA COPPERWELD P/ ATERRAMENTO 254 MICR D= 5/8" X 2,40 M UN | F153: UN | G153: 2 | H153: 29.6 | I153: 34.23 | J153: 68.46
B154: 4.1.5.7 | C154: SIAA-14 | D154: PRÓPRIO | E154: CONECTOR ATR. BR 50/H | F154: PÇ | G154: 2 | H154: 7.77 | I154: 8.98 | J154: 17.96
B155: 4.1.5.8 | C155: 00002673 | D155: SINAPI | E155: ELETRODUTO DE PVC RIGIDO ROSCAVEL DE 1/2 ", SEM LUVA | F155: M | G155: 2 | H155: 3.72 | I155: 4.3 | J155: 8.6
B156: 4.1.5.9 | C156: 00034643 | D156: SINAPI | E156: CAIXA DE INSPECAO PARA ATERRAMENTO E PARA RAIOS, EM POLIPROPILENO, DIAMETRO = 300 MM X ALTURA = 400 MM | F156: UN | G156: 8 | H156: 34.65 | I156: 40.07 | J156: 320.56
B157: 4.1.5.10 | C157: 00001870 | D157: SINAPI | E157: CURVA 90 GRAUS, LONGA, DE PVC RIGIDO ROSCAVEL, DE 1/2", PARA ELETRODUTO | F157: UN | G157: 2 | H157: 2.4 | I157: 2.77 | J157: 5.54
B158: 4.1.5.11 | C158: 00001901 | D158: SINAPI | E158: LUVA EM PVC RIGIDO ROSCAVEL, DE 1/2", PARA ELETRODUTO | F158: UN | G158: 2 | H158: 0.71 | I158: 0.82 | J158: 1.64
B159: 4.1.5.13 | C159: 00001874 | D159: SINAPI | E159: CURVA 90 GRAUS, LONGA, DE PVC RIGIDO ROSCAVEL, DE 1 1/4", PARA ELETRODUTO | F159: UN | G159: 2 | H159: 4.15 | I159: 4.79 | J159: 9.58
B160: 4.1.5.14 | C160: 3550 | D160: ORSE | E160: FITA EM AÇO INOX 3/4" M | F160: M | G160: 20 | H160: 5.2 | I160: 6.01 | J160: 120.2
B161: 4.1.6 | C161: 3156 | D161: ORSE | E161: FECHO PARA FITA 3/4 E 1/2", FUSIMEC OU SIMILAR UN | F161: UN | G161: 10 | H161: 1.25 | I161: 1.44 | J161: 14.4
B162: 4.1.6.1 | C162: 00039208 | D162: SINAPI | E162: ARRUELA EM ALUMINIO, COM ROSCA, DE 1/2", PARA ELETRODUTO | F162: UN | G162: 4 | H162: 0.65 | I162: 0.75 | J162: 3
B163: 4.1.6.2 | C163: 00039174 | D163: SINAPI | E163: BUCHA EM ALUMINIO, COM ROSCA, DE 1/2", PARA ELETRODUTO | F163: UN | G163: 4 | H163: 1.22 | I163: 1.41 | J163: 5.64
B164: 4.1.6.3 | C164: SIAA-09 | D164: PRÓPRIO | E164: POSTE DE CONCRETO DT DE 08/200 | F164: UND | G164: 2 | H164: 754.27 | I164: 872.31 | J164: 1744.62
B165: 4.1.6.4 | E165: INSTALAÇÃO ELÉTRICA (REDE INTERNA) | J165: =SUM(J166:J207) -> 164036.48
B166: 4.1.6.5 | C166: 00000379 | D166: SINAPI | E166: ARRUELA QUADRADA EM ACO GALVANIZADO, DIMENSAO = 38 MM, ESPESSURA = 3MM, DIAMETRO DO FURO= 18 MM | F166: UN | G166: 170 | H166: 1.35 | I166: 1.56 | J166: 265.2
B167: 4.1.6.6 | C167: SIAA-10 | D167: PRÓPRIO | E167: ARRUELA QUADRADA 100MM | F167: PÇ | G167: 8 | H167: 12.07 | I167: 13.95 | J167: 111.6
B168: 4.1.6.7 | C168: SIAA-11 | D168: PRÓPRIO | E168: ALÇA PREFORMADA PARA ESTAI | F168: PÇ | G168: 16 | H168: 13.96 | I168: 16.14 | J168: =ROUND(G168*I168,2) -> 258.24
B169: 4.1.6.8 | C169: 00011275 | D169: SINAPI | E169: ALCA PREFORMADA DE SERVICO, EM ACO GALVANIZADO, PARA CONDUTORES DE ALUMINIO AWG 4 (CAA 6/1) | F169: UN | G169: 44 | H169: 4 | I169: 4.62 | J169: 203.28
B170: 4.1.6.9 | C170: SIAA-12 | D170: PRÓPRIO | E170: ALÇA PREFORMADA PARA CABO MULTIPLEXADO DE 35MM2 | F170: PÇ | G170: 6 | H170: 5.37 | I170: 6.21 | J170: 37.26
B171: 4.1.6.10 | C171: 205 | D171: ORSE | E171: ARMAÇÃO SECUNDÁRIA 2 ESTRIBOS UN | F171: UN | G171: 8 | H171: 38.23 | I171: 44.21 | J171: 353.68
B172: 4.1.6.11 | C172: SIAA-13 | D172: PRÓPRIO | E172: BLOCO DE CONCRETO P/ ESTAI | F172: PÇ | G172: 8 | H172: 43.04 | I172: 49.77 | J172: 398.16
B173: 4.1.6.12 | C173: 00000841 | D173: SINAPI | E173: CABO DE ALUMINIO NU COM ALMA DE ACO, BITOLA 4 AWG | F173: KG | G173: 330 | H173: 43.86 | I173: 50.72 | J173: 16737.6
B174: 4.1.6.13 | C174: 4618 | D174: ORSE | E174: CABO DE ALUMINIO 0,6/1KV MULTIPLEXADOS 3X1X35 +35MM² M | F174: M | G174: 200 | H174: 23 | I174: 26.59 | J174: 5318
B175: 4.1.6.14 | C175: 00000867 | D175: SINAPI | E175: CABO DE COBRE NU 50 MM2 MEIO-DURO | F175: M | G175: 80 | H175: 46.89 | I175: 54.22 | J175: 4337.6
B176: 4.1.6.15 | C176: 00000863 | D176: SINAPI | E176: CABO DE COBRE NU 35 MM2 MEIO-DURO | F176: M | G176: 50 | H176: 32.92 | I176: 38.07 | J176: 1903.5
B177: 5.1 | C177: 4614 | D177: ORSE | E177: CORDOALHA DE AÇO 6.35 MM M | F177: M | G177: 120 | H177: 3 | I177: 3.46 | J177: 415.2
B178: 5.1.1 | C178: SIAA-14 | D178: PRÓPRIO | E178: CONECTOR ATR. BR 50/H | F178: PÇ | G178: 8 | H178: 7.77 | I178: 8.98 | J178: 71.84
B179: 5.1.1.1 | C179: 00011854 | D179: SINAPI | E179: CONECTOR METALICO TIPO PARAFUSO FENDIDO (SPLIT BOLT), PARA CABOS ATE 35 MM2 | F179: UN | G179: 20 | H179: 9.12 | I179: 10.54 | J179: 210.8
B180: 5.1.1.2 | C180: SIAA-15 | D180: PRÓPRIO | E180: CONECTOR CUNHA VERMELHO | F180: PÇ | G180: 20 | H180: 9.92 | I180: 11.47 | J180: 229.4
B181: 5.1.1.3 | C181: SIAA-16 | D181: PRÓPRIO | E181: CRUZETA DE CONCRETO TIPO T 2.400MM 200KG | F181: PÇ | G181: 24 | H181: 174.23 | I181: 201.49 | J181: 4835.76
B182: 5.1.1.4 | C182: M101150001 | D182: EMBASA | E182: CHAPA DE ESTAI P/ POSTE, ACO GALV. | F182: UN | G182: 8 | H182: 8.16 | I182: 9.43 | J182: 75.44
B183: 5.1.1.5 | C183: 587 | D183: ORSE | E183: CHAVE FUSÍVEL 15KV 100A - 10000A BASE C CHAVE FUSÍVEL 15KV 100A - 10000A UN | F183: UN | G183: 6 | H183: 473.9 | I183: 548.06 | J183: 3288.36
B184: 5.1.1.6 | C184: 00002674 | D184: SINAPI | E184: ELETRODUTO DE PVC RIGIDO ROSCAVEL DE 3/4 ", SEM LUVA | F184: M | G184: 2 | H184: 4.63 | I184: 5.35 | J184: 10.7
B185: 5.1.1.7 | C185: 2643 | D185: ORSE | E185: FITA ISOLANTE DE ALTA FUSÃO 19 MM X 10 M UN | F185: UN | G185: 2 | H185: 12.6 | I185: 14.57 | J185: 29.14
B186: 5.1.1.8 | C186: SIAA-17 | D186: PRÓPRIO | E186: GANCHO DE SUSPENSÃO OLHAL 5000DAN | F186: PÇ | G186: 44 | H186: 25.5 | I186: 29.49 | J186: 1297.56
B187: 5.1.1.9 | C187: SIAA-19 | D187: PRÓPRIO | E187: CONECTOR ESTRIBO 4/2 TIPO CUNHA PADRÃO COELBA | F187: PÇ | G187: 12 | H187: 39.99 | I187: 46.24 | J187: 554.88
B188: 5.1.1.10 | C188: 1092 | D188: ORSE | E188: HASTE ÂNCORA 16 X 2400MM UN | F188: UN | G188: 8 | H188: 83.4 | I188: 96.45 | J188: 771.6
B189: 5.1.1.11 | C189: 3490 | D189: ORSE | E189: HASTE COBREADA COPPERWELD P/ ATERRAMENTO 254 MICR D= 5/8" X 2,40 M UN | F189: UN | G189: 8 | H189: 29.6 | I189: 34.23 | J189: 273.84
B190: 5.1.1.12 | C190: 00003398 | D190: SINAPI | E190: ISOLADOR DE PORCELANA, TIPO ROLDANA, DIMENSOES DE *72* X *72* MM, PARA USO EM BAIXA TENSAO | F190: UN | G190: 16 | H190: 5.29 | I190: 6.11 | J190: 97.76
B191: 5.1.1.13 | C191: 00003405 | D191: SINAPI | E191: ISOLADOR DE PORCELANA SUSPENSO, DISCO TIPO GARFO OLHAL, DIAMETRO DE 152 MM, PARA TENSAO DE *15* KV | F191: UN | G191: 44 | H191: 86.18 | I191: 99.66 | J191: 4385.04
B192: 5.1.1.14 | C192: 00003406 | D192: SINAPI | E192: ISOLADOR DE PORCELANA, TIPO PINO MONOCORPO, PARA TENSAO DE *15* KV | F192: UN | G192: 24 | H192: 26.38 | I192: 30.5 | J192: 732
B193: 5.1.1.15 | C193: SIAA-20 | D193: PRÓPRIO | E193: MANILHA SAPATILHA 500 DAN | F193: PÇ | G193: 44 | H193: 32.22 | I193: 37.26 | J193: 1639.44
B194: 5.1.2 | C194: SIAA-21 | D194: PRÓPRIO | E194: OLHAL PARA PARAF. 500 DAN | F194: PÇ | G194: 44 | H194: 26.85 | I194: 31.05 | J194: 1366.2
B195: 5.1.2.3 | C195: SIAA-22 | D195: PRÓPRIO | E195: PARAFUSO PRISIONEIRO PARA ISOLADOR DE PINO 13,8KV | F195: PÇ | G195: 24 | H195: 9.39 | I195: 10.85 | J195: 260.4
B196: 5.1.2.3 | C196: SIAA-23 | D196: PRÓPRIO | E196: PARA RAIO 15KV RD 10KA POLIMERICO | F196: PÇ | G196: 6 | H196: 403.38 | I196: 466.5 | J196: 2799
B197: 5.1.2.3 | C197: 00000432 | D197: SINAPI | E197: PARAFUSO M16 EM ACO GALVANIZADO, COMPRIMENTO = 250 MM, DIAMETRO = 16 MM, ROSCA MAQUINA, CABECA QUADRADA | F197: UN | G197: 30 | H197: 15.02 | I197: 17.37 | J197: 521.1
B198: 5.1.2.3 | C198: 00000439 | D198: SINAPI | E198: PARAFUSO M16 EM ACO GALVANIZADO, COMPRIMENTO = 300 MM, DIAMETRO = 16 MM, ROSCA MAQUINA, CABECA QUADRADA | F198: UN | G198: 12 | H198: 17.25 | I198: 19.94 | J198: 239.28
B199: 5.1.2.4 | C199: 1683 | D199: ORSE | E199: PARAFUSO CABEÇA QUADRADA 16 X 400MM UN | F199: UN | G199: 52 | H199: 19 | I199: 21.97 | J199: 1142.44
B200: 5.1.3 | C200: SIAA-24 | D200: PRÓPRIO | E200: PARAF. CAB. QUADRADA 16X70 | F200: PÇ | G200: 8 | H200: 9.39 | I200: 10.85 | J200: 86.8
... 138 more rows

Sheet Orçamento Sintético
H1: BDI SERVIÇOS | I1: 27,75¨%
H2: BDI MATERIAIS | I2: 0.1565
H3: BANCOS
H4: SINAPI -07/2023- BA, SICRO3-04/2023-BA SBC - 09/2023 - BA, ORSE- 06/2023 - SE SEINFRA - 028 - CE, EMBASA-05/2023-BA EMOP - 07/2023 - RJ, IOPES 06/2023
B5: ITEM | C5: CÓDIGO | D5: BANCO | E5: DESCRIÇÃO | F5: UNID | G5: QUANTIDADE | H5: VALOR UNITÁRIO | I5: TOTAL
B6: S E R V I Ç O S
B7: 1.0 | E7: SERVIÇOS PRELIMINARES | I7: =I8+I11+I27 -> 1187126.09
B8: 1.1 | E8: IDENTIFICAÇÃO DA OBRA, CANTEIRO DE OBRAS | I8: =SUM(I9:I10) -> 64102.57
B9: 1.1.1 | C9: REMAGUA4 | D9: PRÓPRIO | E9: MOBILIZAÇÃO DE EQUIPAMENTO E PESSOAS | F9: UNID. | G9: 1 | H9: 22683.13 | I9: =ROUND(G9*H9,2) -> 22683.13
B10: 1.1.2 | C10: 74209/001 | D10: SINAPI | E10: PLACA DE OBRA EM CHAPA DE ACO GALVANIZADO | F10: M² | G10: 72 | H10: 575.27 | I10: =ROUND(G10*H10,2) -> 41419.44
B11: 1.2 | E11: INSTALAÇÃO DO CANTEIRO DE OBRAS | I11: =SUM(I12:I26) -> 1072137.32
B12: 1.2.1 | C12: 73822/002 | D12: SINAPI | E12: LIMPEZA MECANIZADA DE TERRENO COM REMOCAO DE CAMADA VEGETAL, UTILIZANDO MOTONIVELADORA | F12: M² | G12: 1225.09 | H12: 1.11 | I12: =ROUND(G12*H12,2) -> 1359.85
B13: 1.2.2 | C13: 74142/003 | D13: SINAPI | E13: CERCA COM MOUROES DE MADEIRA, 7,5X7,5CM, ESPACAMENTO DE 2M, ALTURA LIVRE DE 2M, CRAVADOS 0,5M, COM 8 FIOS DE ARAME FARPADO Nº 14 CLASSE 250 | F13: M | G13: 135 | H13: 82.02 | I13: 11072.7
B14: 1.2.3 | C14: 4784 | D14: ORSE | E14: BARRACÃO PARA ESCRITÓRIO DE OBRA PORTE MÉDIO S=43,56M2, C/ 2 SALAS E 2 BANHEIROS COM MATERIAIS NOVOS | F14: UN | G14: 2 | H14: 29215.31 | I14: 58430.62
B15: 1.2.4 | C15: 11703 | D15: ORSE | E15: BARRACÃO ABERTO PARA APOIO À PRODUÇÃO (CARPINTARIA, CENTRAL DE ARMAÇÃO, OFICINA, ETC.) C/ TESOURAS, TELHA 4MM, PISO EM CONCRETO DESEMPOLADO | F15: M² | G15: 200 | H15: 250.1 | I15: 50020
B16: 1.2.5 | C16: 103316 | D16: SINAPI | E16: ALVENARIA DE VEDAÇÃO DE BLOCOS VAZADOS DE CONCRETO DE 9X19X39 CM (ESPESSURA 9 CM) E ARGAMASSA DE ASSENTAMENTO COM PREPARO EM BETONEIRA. AF_12/2021 | F16: M² | G16: 200 | H16: 85.75 | I16: 17150
B17: 1.2.6 | C17: 101161 | D17: SINAPI | E17: ALVENARIA DE VEDAÇÃO COM ELEMENTO VAZADO DE CONCRETO (COBOGÓ) DE 7X50X50CM E ARGAMASSA DE ASSENTAMENTO COM PREPARO EM BETONEIRA. AF_05/2020 | F17: M² | G17: 25 | H17: 246.45 | I17: 6161.25
B18: 1.2.7 | C18: 4318 | D18: ORSE | E18: PORTÃO EM TUBO DE AÇO GALVANIZADO D=1", MEDINDO 4,00X3,00 M, PADRÃO ESCOLAS | F18: UN | G18: 1 | H18: 5672.49 | I18: 5672.49
B19: 1.2.8 | C19: 74238/002 | D19: SINAPI | E19: PORTAO EM TELA ARAME GALVANIZADO N.12 MALHA 2" E MOLDURA EM TUBOS DE ACO COM DUAS FOLHAS DE ABRIR, INCLUSO FERRAGENS | F19: M² | G19: 8.4 | H19: 1504.14 | I19: 12634.78
B20: 1.2.9 | C20: 9416 | D20: ORSE | E20: INSTALAÇÃO PROVISÓRIA DE ENERGIA ELÉTRICA, AEREA, TRIFASICA, EM POSTE GALVANIZADO, EXCLUSIVE FORNECIMENTO DO MEDIDOR | F20: UN | G20: 1 | H20: 2085.53 | I20: 2085.53
B21: 1.2.10 | C21: 8368 | D21: ORSE | E21: ARANDELA FECHADA ESFÉRICA C/ REFRATOR ACRÍLICO TRANSPARENTE E BRAÇO EM TUBO DE FERRO, FIXADA NA PAREDE, REF. CWA-520 DA TECNOLUX OU SIMILAR | F21: UN | G21: 8 | H21: 368.66 | I21: 2949.28
B22: 1.2.11 | C22: 93243 | D22: SINAPI | E22: EXECUÇÃO DE RESERVATÓRIO ELEVADO DE ÁGUA (2000 LITROS) EM CANTEIRO DE OBRA, APOIADO EM ESTRUTURA DE MADEIRA. AF_02/2016_PA | F22: UN | G22: 1 | H22: 12084.47 | I22: 12084.47
B23: 1.2.12 | C23: 6096 | D23: ORSE | E23: LIGAÇÃO PREDIAL DE ÁGUA EM MURETA DE CONCRETO, PROVISÓRIA OU DEFINITIVA, COM FORNECIMENTO DE MATERIAL, INCLUSIVE MURETA E HIDRÔMETRO, REDE DN 50MM - REV 03_10/2022 | F23: UN | G23: 1 | H23: 838.14 | I23: 838.14
B24: 1.2.13 | C24: ALOCALSAAPILÃO | D24: PRÓPRIO | E24: ADMINISTRAÇÃO LOCAL E MANUTENÇÃO DE CANTEIRO DE OBRAS | F24: UN | G24: 1 | H24: 775414.7 | I24: 775414.7
B25: 1.2.14 | C25: 30.02.59 | D25: EMBASA | E25: ALUGUEL DE VEICULO TIPO UTILITARIO CLI - 1.6 C/COMBUSTIVEL | F25: MES | G25: 18 | H25: 5198.91 | I25: 93580.38
B26: 1.2.15 | C26: REMAGUA5 | D26: PRÓPRIO | E26: DESMOBILIZAÇÃO DE EQUIPAMENTO E PESSOAS | F26: UNID. | G26: 1 | H26: 22683.13 | I26: 22683.13
B27: 1.3 | E27: SERVIÇOS AUXILIARES | I27: =SUM(I28:I31) -> 50886.2
B28: 1.3.1 | C28: 03.01.01 | D28: EMBASA | E28: PLACA DE SINALIZACAO E ADVERTENCIA,INCL.FORNEC.,TRANSP.,INSTAL.E REMOCAO P/OUTRO LOCAL DA OBRA (DP0301) | F28: M² | G28: 1 | H28: 67.8 | I28: =ROUND(G28*H28,2) -> 67.8
B29: 1.3.2 | C29: 32.01.02 | D29: EMBASA | E29: SONDAGEM A TRADO MECÂNICO | F29: M | G29: 300 | H29: 102.2 | I29: =ROUND(G29*H29,2) -> 30660
B30: 1.3.3 | C30: 30.01.21 | D30: EMBASA | E30: PROJETISTA | F30: HORA | G30: 160 | H30: 101.17 | I30: =ROUND(G30*H30,2) -> 16187.2
B31: 1.3.4 | C31: 30.01.23 | D31: EMBASA | E31: DESENHISTA PROJETISTA | F31: HORA | G31: 160 | H31: 24.82 | I31: =ROUND(G31*H31,2) -> 3971.2
B32: 2.0 | E32: UNIDADE DO SISTEMA: CAPTAÇÃO DE ÁGUA BRUTA | I32: =I33 -> 7310.67
B33: 2.1 | E33: CAIXA DE CAPTAÇÃO DE ÁGUA BRUTA | I33: =SUM(I34:I43) -> 7310.67
B34: 2.1.1 | C34: 2497 | D34: ORSE | E34: ESCAVAÇÃO MANUAL DE VALA OU CAVA EM MATERIAL DE 1ª CATEGORIA, PROFUNDIDADE ATÉ 1,50M | F34: M³ | G34: 6.96 | H34: 64.19 | I34: =ROUND(G34*H34,2) -> 446.76
B35: 2.1.2 | C35: 2499 | D35: ORSE | E35: ESCAVAÇÃO MANUAL DE VALA OU CAVA EM MATERIAL DE 2ª CATEGORIA, PROFUNDIDADE ATÉ 1,50M | F35: M³ | G35: 3.75 | H35: 106.99 | I35: 401.21
B36: 2.1.3 | C36: 74010/001 | D36: SINAPI | E36: CARGA E DESCARGA MECANICA DE SOLO UTILIZANDO CAMINHAO BASCULANTE 6,0M3/16T E PA CARREGADEIRA SOBRE PNEUS 128 HP, CAPACIDADE DA CAÇAMBA 1,7 A 2,8 M3, PESO OPERACIONAL 11632 KG | F36: M³ | G36: 13.91 | H36: 3.07 | I36: 42.7
B37: 2.1.4 | C37: 93594 | D37: SINAPI | E37: TRANSPORTE COM CAMINHÃO BASCULANTE DE 10 M³, EM VIA URBANA EM LEITO NATURAL (UNIDADE: TXKM). AF_07/2020 | F37: TXKM | G37: 236.47 | H37: 2.44 | I37: 576.99
B38: 2.1.5 | C38: 83344 | D38: SINAPI | E38: ESPALHAMENTO DE MATERIAL EM BOTA FORA, COM UTILIZACAO DE TRATOR DE ESTEIRAS DE 165 HP | F38: M³ | G38: 13.91 | H38: 1.62 | I38: 22.53
B39: 2.1.6 | C39: 05.94.01 | D39: EMBASA | E39: EXEC. DE ATERRO EM VALAS/POCOS/CAVAS DE FUNDACAO C/ SOLO PROVENIENTE DAS ESCAVACOES, INCL. LANCAM., ESPALHAM., COMPACT. C/ PLACA VIBRAT., SOQUETE PNEUMATICOOU SOQUETE MANUAL (MRR / MRS) | F39: M³ | G39: 5.2 | H39: 22.42 | I39: 116.58
B40: 2.1.7 | C40: 94970 | D40: SINAPI | E40: CONCRETO FCK = 20MPA, TRAÇO 1:2,7:3 (EM MASSA SECA DE CIMENTO/ AREIA MÉDIA/ BRITA 1) - PREPARO MECÂNICO COM BETONEIRA 600 L. AF_05/2021 | F40: M³ | G40: 2.65 | H40: 633.9 | I40: 1679.84
B41: 2.1.8 | C41: 5651 | D41: SINAPI | E41: FORMA TABUA PARA CONCRETO EM FUNDACAO C/ REAPROVEITAMENTO 5X | F41: M² | G41: 25 | H41: 77.18 | I41: 1929.5
B42: 2.1.9 | C42: 92921 | D42: SINAPI | E42: ARMAÇÃO DE ESTRUTURAS DIVERSAS DE CONCRETO ARMADO, EXCETO VIGAS, PILARES, LAJES E FUNDAÇÕES, UTILIZANDO AÇO CA-50 DE 12,5 MM - MONTAGEM. AF_06/2022 | F42: KG | G42: 154 | H42: 13.29 | I42: 2046.66
B43: 2.1.10 | C43: 94974 | D43: SINAPI | E43: CONCRETO MAGRO PARA LASTRO, TRAÇO 1:4,5:4,5 (EM MASSA SECA DE CIMENTO/ AREIA MÉDIA/ BRITA 1) - PREPARO MANUAL. AF_05/2021 | F43: M³ | G43: 0.08 | H43: 598.75 | I43: 47.9
B44: 3.0 | E44: UNIDADE DO SISTEMA: ADUTORA DE ÁGUA BRUTA | I44: =I45+I65+I67 -> 238366.34
B45: 3.1 | E45: ADUTORA DE ÁGUA BRUTA | I45: =SUM(I46:I64) -> 127523.54
B46: 3.1.1 | C46: 73679 | D46: SINAPI | E46: LOCAÇÃO DE ADUTORAS, COLETORES TRONCO E INTERCEPTORES - ATÉ DN 500 MM | F46: M | G46: 477.77 | H46: 1.99 | I46: =ROUND(G46*H46,2) -> 950.76
B47: 3.1.2 | C47: 6098 | D47: ORSE | E47: CADASTRO DE REDES DE ÁGUA / ADUTORAS | F47: M | G47: 477.77 | H47: 1.77 | I47: 845.65
B48: 3.1.3 | C48: 2503 | D48: ORSE | E48: ESCAVAÇÃO COM RETRO-ESCAVADEIRA DE PNEUS, DE VALAS, EM MATERIAL DE 1ª CATEGORIA ATÉ 1,50M DE PROFUNDIDADE | F48: M³ | G48: 128.16 | H48: 8.81 | I48: 1129.09
B49: 3.1.4 | C49: 2506 | D49: ORSE | E49: ESCAVAÇÃO COM RETRO-ESCAVADEIRA DE PNEUS, DE VALAS, EM MATERIAL DE 2ª CATEGORIA ATÉ 1,50M DE PROFUNDIDADE | F49: M³ | G49: 54.18 | H49: 11.9 | I49: 644.74
B50: 3.1.5 | C50: 05.01.64 | D50: EMBASA | E50: ESCAV. DE VALAS - AGUA - EM ROCHA SA, EXECUTADA ENTRE AS PROFUND.DE 0 A 2,00 M,C/ USO DE EXPLOSIVO,INCL.PROTECAO | F50: M³ | G50: 103.2 | H50: 284.44 | I50: 29354.21
B51: 3.1.6 | C51: 05.01.87 | D51: EMBASA | E51: ESCAV. DE VALAS - AGUA - EM ROCHA SA, A FRIO, EXECUTADA ENTRE AS PROFUND. DE 0A 2,00 M, COM ARGAMASSA EXPANSIVA. | F51: M³ | G51: 3.78 | H51: 347.68 | I51: 1314.23
B52: 3.1.7 | C52: 05.01.55 | D52: EMBASA | E52: ESCAV. DE VALAS - AGUA - EM ROCHA BRANDA EXECUTADA ENTRE AS PROFUND. DE 0 A 2,00M, C/USO DE ROMPEDOR PNEUMATICO | F52: M³ | G52: 61.35 | H52: 64.56 | I52: 3960.76
B53: 3.1.8 | C53: 74010/001 | D53: SINAPI | E53: CARGA E DESCARGA MECANICA DE SOLO UTILIZANDO CAMINHAO BASCULANTE 6,0M3/16T E PA CARREGADEIRA SOBRE PNEUS 128 HP, CAPACIDADE DA CAÇAMBA 1,7 A 2,8 M3, PESO OPERACIONAL 11632 KG | F53: M³ | G53: 196.9 | H53: 3.07 | I53: 604.48
B54: 3.1.9 | C54: 06.01.01 | D54: EMBASA | E54: CARGA E DESCARGA DE ROCHA | F54: M³ | G54: 108.88 | H54: 6.08 | I54: 661.99
B55: 3.1.10 | C55: 93594 | D55: SINAPI | E55: TRANSPORTE COM CAMINHÃO BASCULANTE DE 10 M³, EM VIA URBANA EM LEITO NATURAL (UNIDADE: TXKM). AF_07/2020 | F55: TXKM | G55: 6861.79 | H55: 2.44 | I55: 16742.77
B56: 3.1.11 | C56: 83344 | D56: SINAPI | E56: ESPALHAMENTO DE MATERIAL EM BOTA FORA, COM UTILIZACAO DE TRATOR DE ESTEIRAS DE 165 HP | F56: M³ | G56: 136.97 | H56: 1.62 | I56: 221.89
B57: 3.1.12 | C57: 94097 | D57: SINAPI | E57: PREPARO DE FUNDO DE VALA COM LARGURA MENOR QUE 1,5 M, EM LOCAL COM NÍVEL BAIXO DE INTERFERÊNCIA. AF_06/2016 | F57: M² | G57: 286.66 | H57: 8.63 | I57: 2473.88
B58: 3.1.13 | C58: 05.99.91 | D58: EMBASA | E58: (REVISADA) - EXEC. DE ENVOLTORIA OU BERCO DE AREIA EM VALAS, INCL. LANCAM., ESPALHAM. E COMPACT. C/PLACA VIBRATORIA, SOQUETE PNEUMATICO OU SOQUETE MANUAL , C/ FORNEC. DOMAT. - DMT=20KM (MRR/RMS) | F58: M³ | G58: 172 | H58: 177.8 | I58: 30581.6
B59: 3.1.14 | C59: 05.94.01 | D59: EMBASA | E59: EXEC. DE ATERRO EM VALAS/POCOS/CAVAS DE FUNDACAO C/ SOLO PROVENIENTE DAS ESCAVACOES, INCL. LANCAM., ESPALHAM., COMPACT. C/ PLACA VIBRAT., SOQUETE PNEUMATICOOU SOQUETE MANUAL (MRR / MRS) | F59: M³ | G59: 325.25 | H59: 22.42 | I59: 7292.11
B60: 3.1.15 | C60: 05.04.07 | D60: EMBASA | E60: (REVISADA) EXEC. DE ATERRO MANUAL EM VALAS/POCOS/CAVAS DE FUNDACAO, C/ FORNEC. DE ARGILA ARENOSA, INCL. LANCAM., ESPALHAM. E COMPACTACAO MECANIZADA COM COMPACTADOR TIPO PLACA VIBRATORIA OU A | F60: M³ | G60: 152.52 | H60: 168.15 | I60: 25646.24
B61: 3.1.16 | C61: 13.01.01 | D61: EMBASA | E61: CARGA E DESCARGA DE TUBOS PVC RIG. / RPVC / PRFV / PEAD, DN ATE 350 MM | F61: M | G61: 477.77 | H61: 0.19 | I61: 90.78
B62: 3.1.17 | C62: 13.04.01 | D62: EMBASA | E62: MOMENTO DE TRANSPORTE P/TUBOS, PECAS E CONEXOES DE PVC RIG./RPVC / PRFV / PEAD C/DN ATE 350MM (DISTANCIA ATE 30KM) | F62: MXK | G62: 5255.47 | H62: 0.02 | I62: 105.11
B63: 3.1.18 | C63: 12.03.19 | D63: EMBASA | E63: ASSENT. DE TUBOS E CONEXOES EM PVC RIG. DEFºFº E RPVC PB JE- AGUA - DN 200 MM | F63: M | G63: 477.77 | H63: 5.09 | I63: 2431.85
B64: 3.1.19 | C64: 92809 | D64: SINAPI | E64: ASSENTAMENTO DE TUBO DE CONCRETO PARA REDES COLETORAS DE ÁGUAS PLUVIAIS, DIÂMETRO DE 400 MM, JUNTA RÍGIDA, INSTALADO EM LOCAL COM BAIXO NÍVEL DE INTERFERÊNCIAS (NÃO INCLUI FORNECIMENTO). AF_12/2015 | F64: M | G64: 30 | H64: 82.38 | I64: 2471.4
B65: 3.2 | E65: DESCARGAS | I65: =I66 -> 55421.4
B66: 3.2.1 | C66: 10.02.01 | D66: EMBASA | E66: CAIXA P/DESCARGA E/OU VENTOSA EM ALVEN.TIJOLO MACICO ,SECAO INTERNA 1,30X1,10M,H<=1,30M,P/LINHA PRINCIPAL.C/50MM<=DN<=300MM, S/FORNEC.MAT. HIDRAULICO (CRV TIPO I) DP1002-01/02 | F66: UN | G66: 20 | H66: 2771.07 | I66: =ROUND(G66*H66,2) -> 55421.4
B67: 3.3 | E67: VENTOSAS | I67: =I68 -> 55421.4
B68: 3.1 | C68: 10.02.01 | D68: EMBASA | E68: CAIXA P/DESCARGA E/OU VENTOSA EM ALVEN.TIJOLO MACICO ,SECAO INTERNA 1,30X1,10M,H<=1,30M,P/LINHA PRINCIPAL.C/50MM<=DN<=300MM,S/FORNEC.MAT.HIDRAULICO (CRV TIPO I) DP1002-01/02 | F68: UN | G68: 20 | H68: 2771.07 | I68: =ROUND(G68*H68,2) -> 55421.4
B69: 4.0 | E69: UNIDADE DO SISTEMA: ESTAÇÃO DE TRATAMENTO DE ÁGUA | I69: =I70+I81+I86+I91+I112+I128 -> 2654906.35
B70: 4.1 | E70: URBANIZAÇÃO DA ÁREA DA ETA | I70: =SUM(I71:I80) -> 458063.09
B71: 4.1.1 | C71: 73859/001 | D71: SINAPI | E71: DESMATAMENTO E LIMPEZA MECANIZADA DE TERRENO COM REMOCAO DE CAMADA VEGETAL, UTILIZANDO TRATOR DE ESTEIRAS | F71: M² | G71: 100 | H71: 0.24 | I71: =ROUND(G71*H71,2) -> 24
B72: 4.1.2 | C72: 000001-ALEX | D72: PRÓPRIO | E72: ABERTURA DE CAIXA ATÉ 40CM, INCLUI ESCAVAÇÃO, COMPACTAÇÃO, TRANSPORTE E PREPARO DO SUB-LEITO | F72: M² | G72: 592 | H72: 34.4 | I72: 20364.8
B73: 4.1.3 | C73: 18.03.01 | D73: EMBASA | E73: (REVISADA) - REVEST. PRIMARIO C/ CASCALHO OU SAIBRO S/ COMPACTACAO | F73: M³ | G73: 88.8 | H73: 238.48 | I73: 21177.02
B74: 4.1.4 | C74: 73844/001 | D74: SINAPI | E74: MURO DE ARRIMO DE ALVENARIA DE PEDRA ARGAMASSADA | F74: M³ | G74: 8.9 | H74: 978.3 | I74: 8706.87
B75: 4.1.5 | C75: 74143/002 | D75: SINAPI | E75: CERCA COM MOUROES DE CONCRETO, RETO, 15X15CM, ESPACAMENTO DE 3M, CRAVADOS 0,5M, ESCORAS DE 10X10CM NOS CANTOS, COM 9 FIOS DE ARAME DE ACO OVALADO 15X17 | F75: M | G75: 161 | H75: 99.42 | I75: 16006.62
B76: 4.1.6 | C76: 74238/002 | D76: SINAPI | E76: PORTAO EM TELA ARAME GALVANIZADO N.12 MALHA 2" E MOLDURA EM TUBOS DE ACO COM DUAS FOLHAS DE ABRIR, INCLUSO FERRAGENS | F76: M² | G76: 8.4 | H76: 1504.14 | I76: 12634.78
B77: 4.1.7 | C77: 3806399 | D77: SICRO3 | E77: FABRICAÇÃO DE SUPERESTRUTURA METÁLICA PARA PASSARELA PL-20 - EXCETO PISO DE CONCRETO | F77: UN | G77: 1 | H77: 307769.46 | I77: 307769.46
B78: 4.1.8 | C78: 3806401 | D78: SICRO3 | E78: LANÇAMENTO DE SUPERESTRUTURA DE PASSARELA METÁLICA DE 12 A 24 T COM UTILIZAÇÃO DE GUINDASTE | F78: UN | G78: 1 | H78: 18832.94 | I78: 18832.94
B79: 4.1.9 | C79: 3806386 | D79: SICRO3 | E79: GUARDA-CORPO E CORRIMÃO METÁLICO PARA PASSARELAS PARA PEDESTRES - FORNECIMENTO E INSTALAÇÃO | F79: M | G79: 50 | H79: 965.24 | I79: 48262
B80: 4.1.10 | C80: 09.14.04 | D80: EMBASA | E80: FORNEC. E ASSENT. DE LAJE PRE-FABRICADA P/ PISO, E=12CM | F80: M² | G80: 30 | H80: 142.82 | I80: 4284.6
B81: 4.2 | E81: TERRAPLANAGEM DA ÁREA DA ETA | I81: =SUM(I82:I85) -> 16327.1
B82: 4.2.1 | C82: 74154/001 | D82: SINAPI | E82: ESCAVACAO, CARGA E TRANSPORTE DE MATERIAL DE 1A CATEGORIA COM TRATOR SOBRE ESTEIRAS 347 HP E CACAMBA 6M3, DMT 50 A 200M | F82: M³ | G82: 85.1 | H82: 8.16 | I82: =ROUND(G82*H82,2) -> 694.42
B83: 4.2.2 | C83: 74005/001 | D83: SINAPI | E83: COMPACTACAO MECANICA, SEM CONTROLE DO GC (C/COMPACTADOR PLACA 400 KG) | F83: M³ | G83: 85.1 | H83: 8.31 | I83: =ROUND(G83*H83,2) -> 707.18
B84: 4.2.3 | C84: 72910 | D84: SINAPI | E84: BASE DE SOLO ARENOSO FINO, COMPACTACAO 100% PROCTOR MODIFICADO | F84: M³ | G84: 191 | H84: 24.22 | I84: =ROUND(G84*H84,2) -> 4626.02
B85: 4.2.4 | C85: 93594 | D85: SINAPI | E85: TRANSPORTE COM CAMINHÃO BASCULANTE DE 10 M³, EM VIA URBANA EM LEITO NATURAL (UNIDADE: TXKM). AF_07/2020 | F85: TXKM | G85: 4221.1 | H85: 2.44 | I85: =ROUND(G85*H85,2) -> 10299.48
B86: 4.3 | E86: OBRAS CIVIS PARA MONTAGEM DA ETA (ESTRUTURA DE APOIO DOS TANQUES E ESTRUTURA DE TRATAMENTO) | I86: =SUM(I87:I90) -> 1925518.59
B87: 4.3.1 | C87: 94974 | D87: SINAPI | E87: CONCRETO MAGRO PARA LASTRO, TRAÇO 1:4,5:4,5 (EM MASSA SECA DE CIMENTO/ AREIA MÉDIA/ BRITA 1) - PREPARO MANUAL. AF_05/2021 | F87: M³ | G87: 1.59 | H87: 598.75 | I87: =ROUND(G87*H87,2) -> 952.01
B88: 4.3.2 | C88: 103073 | D88: SINAPI | E88: EXECUÇÃO DE RADIER, ESPESSURA DE 30 CM, FCK = 30 MPA, COM USO DE FORMAS EM MADEIRA SERRADA. AF_09/2021 | F88: M² | G88: 24.72 | H88: 459.5 | I88: =ROUND(G88*H88,2) -> 11358.84
B89: 4.3.3 | C89: 103073 | D89: SINAPI | E89: EXECUÇÃO DE RADIER, ESPESSURA DE 30 CM, FCK = 30 MPA, COM USO DE FORMAS EM MADEIRA SERRADA. AF_09/2021 | F89: M² | G89: 24.72 | H89: 459.5 | I89: =ROUND(G89*H89,2) -> 11358.84
B90: 4.3.4 | C90: SIAA-02 | D90: PRÓPRIO | E90: ESTRUTURAS EM FIBRA DE VIDRO PARA IMPLANTAÇÃO DAS UNIDADE DE TRATAMENTO DO TIPO PRÉ-FABRICADA E MONTADA IN-LOCO, INCLUSIVE TUBULAÇÕES INTERLIGANTES E DEMAIS PEÇAS E CONEXÕES | F90: UN | G90: 1 | H90: 1901848.9 | I90: =ROUND(G90*H90,2) -> 1901848.9
B91: 4.4 | E91: CASA DE QUÍMICA | I91: =SUM(I92:I111) -> 39102.25
B92: 4.4.1 | C92: 73859/001 | D92: SINAPI | E92: DESMATAMENTO E LIMPEZA MECANIZADA DE TERRENO COM REMOCAO DE CAMADA VEGETAL, UTILIZANDO TRATOR DE ESTEIRAS | F92: M² | G92: 19 | H92: 0.24 | I92: =ROUND(G92*H92,2) -> 4.56
B93: 4.4.2 | C93: 73992/001 | D93: SINAPI | E93: LOCACAO CONVENCIONAL DE OBRA, ATRAVÉS DE GABARITO DE TABUAS CORRIDAS PONTALETADAS A CADA 1,50M, SEM REAPROVEITAMENTO | F93: M² | G93: 28.8 | H93: 23.54 | I93: 677.95
B94: 4.4.3 | C94: 94974 | D94: SINAPI | E94: CONCRETO MAGRO PARA LASTRO, TRAÇO 1:4,5:4,5 (EM MASSA SECA DE CIMENTO/ AREIA MÉDIA/ BRITA 1) - PREPARO MANUAL. AF_05/2021 | F94: M³ | G94: 1.33 | H94: 598.75 | I94: 796.34
B95: 4.4.4 | C95: 94966 | D95: SINAPI | E95: CONCRETO FCK = 30MPA, TRAÇO 1:2,1:2,5 (EM MASSA SECA DE CIMENTO/ AREIA MÉDIA/ BRITA 1) - PREPARO MECÂNICO COM BETONEIRA 400 L. AF_05/2021 | F95: M³ | G95: 3.81 | H95: 701.83 | I95: 2673.97
B96: 4.4.5 | C96: 73361 | D96: SINAPI | E96: CONCRETO CICLOPICO FCK=10MPA 30% PEDRA DE MAO INCLUSIVE LANCAMENTO | F96: M³ | G96: 4.4 | H96: 715.41 | I96: 3147.8
B97: 4.4.6 | C97: 09.09.07 | D97: EMBASA | E97: (REVISADA) FORMA PLANA EM COMP. RESINADO P/ ESTRUTURA E=12 ATE 3X | F97: M² | G97: 14.46 | H97: 145.22 | I97: 2099.88
B98: 4.4.7 | C98: 11266 | D98: ORSE | E98: ARMACAO ACO CA-50 DIAM.16,0 (5/8) À 25,0MM (1) - FORNECIMENTO/ CORTE(PERDA DE 10%) / DOBRA / COLOCAÇÃO. - REV 01 | F98: KG | G98: 342.9 | H98: 16.39 | I98: 5620.13
B99: 4.4.8 | C99: 87482 | D99: SINAPI | E99: ALVENARIA DE VEDAÇÃO DE BLOCOS CERÂMICOS FURADOS NA VERTICAL DE 19X19X39CM (ESPESSURA 19CM) DE PAREDES COM ÁREA LÍQUIDA MAIOR OU IGUAL A 6M² SEM VÃOS E ARGAMASSA DE ASSENTAMENTO COM PREPARO MANUAL. AF_06/2014 | F99: M² | G99: 40.65 | H99: 110.22 | I99: 4480.44
B100: 4.4.9 | C100: 89173 | D100: SINAPI | E100: (COMPOSIÇÃO REPRESENTATIVA) DO SERVIÇO DE EMBOÇO/MASSA ÚNICA, APLICADO MANUALMENTE, TRAÇO 1:2:8, EM BETONEIRA DE 400L, PAREDES INTERNAS, COM EXECUÇÃO DE TALISCAS, EDIFICAÇÃO HABITACIONAL UNIFAMILIAR (CASAS) E EDIFICAÇÃO PÚBLICA PADRÃO. AF_12/2014 | F100: M² | G100: 40.65 | H100: 55.57 | I100: 2258.92
B101: 4.4.10 | C101: 87794 | D101: SINAPI | E101: EMBOÇO OU MASSA ÚNICA EM ARGAMASSA TRAÇO 1:2:8, PREPARO MANUAL, APLICADA MANUALMENTE EM PANOS CEGOS DE FACHADA (SEM PRESENÇA DE VÃOS), ESPESSURA DE 25 MM. AF_09/2022 | F101: M² | G101: 81.3 | H101: 58.4 | I101: 4747.92
B102: 4.4.11 | C102: 15.07.01 | D102: EMBASA | E102: PINTURA A BASE DE CONSERVADO P, OU SIMILAR P/ CAIACAO, INCL. LIXAMENTO | F102: M² | G102: 81.3 | H102: 13.27 | I102: 1078.85
B103: 4.4.12 | C103: 2497 | D103: ORSE | E103: ESCAVAÇÃO MANUAL DE VALA OU CAVA EM MATERIAL DE 1ª CATEGORIA, PROFUNDIDADE ATÉ 1,50M | F103: M³ | G103: 4.4 | H103: 64.19 | I103: 282.44
B104: 4.4.13 | C104: 74010/001 | D104: SINAPI | E104: CARGA E DESCARGA MECANICA DE SOLO UTILIZANDO CAMINHAO BASCULANTE 6,0M3/16T E PA CARREGADEIRA SOBRE PNEUS 128 HP, CAPACIDADE DA CAÇAMBA 1,7 A 2,8 M3, PESO OPERACIONAL 11632 KG | F104: M³ | G104: 5.72 | H104: 3.07 | I104: 17.56
B105: 4.4.14 | C105: 93594 | D105: SINAPI | E105: TRANSPORTE COM CAMINHÃO BASCULANTE DE 10 M³, EM VIA URBANA EM LEITO NATURAL (UNIDADE: TXKM). AF_07/2020 | F105: TXKM | G105: 97.24 | H105: 2.44 | I105: 237.27
B106: 4.4.15 | C106: 83344 | D106: SINAPI | E106: ESPALHAMENTO DE MATERIAL EM BOTA FORA, COM UTILIZACAO DE TRATOR DE ESTEIRAS DE 165 HP | F106: M³ | G106: 5.72 | H106: 1.62 | I106: 9.27
B107: 4.4.16 | C107: 198 | D107: ORSE | E107: MADEIRAMENTO EM MASSARANDUBA/MADEIRA DE LEI, ACABAMENTO APARELHADO, C/ RIPÃO 5 X 3 CM E RIPA 4 X 1,5CM, EXCLUSIVE PEÇAS PRINCIPAIS | F107: M² | G107: 26.68 | H107: 138.63 | I107: 3698.65
B108: 4.4.17 | C108: 15.02.13 | D108: EMBASA | E108: COBERTURA C/ TELHA CERAMICA TIPO CANAL C/ MADEIRAMENTO, INCL. ELEMENTOS P/ FIXACAO | F108: M² | G108: 26.68 | H108: 171.64 | I108: 4579.36
B109: 4.4.18 | C109: 9290 | D109: ORSE | E109: PORTÃO DE FERRO DE ABRIR, QUADRO EM TUBO DE AÇO GALV.1 1/2", BARRA QUADRADA 1/2" NA VERTICAL E BARRA CHATA DE 1 X 3/16" NA HORIZONTAL, INCLUSIVE DOBRADIÇAS E E FERROLHO | F109: M² | G109: 2.52 | H109: 479.61 | I109: 1208.62
B110: 4.4.19 | C110: 91329 | D110: SINAPI | E110: KIT DE PORTA DE MADEIRA FRISADA, SEMI-OCA (LEVE OU MÉDIA), PADRÃO POPULAR, 60X210CM, ESPESSURA DE 3CM, ITENS INCLUSOS: DOBRADIÇAS, MONTAGEM E INSTALAÇÃO DO BATENTE, SEM FECHADURA - FORNECIMENTO E INSTALAÇÃO. AF_12/2019 | F110: UN | G110: 1 | H110: 1067.21 | I110: 1067.21
B111: 4.4.20 | C111: 73937/001 | D111: SINAPI | E111: COBOGO DE CONCRETO (ELEMENTO VAZADO), 7X50X50CM, ASSENTADO COM ARGAMASSA TRACO 1:4 (CIMENTO E AREIA) | F111: M² | G111: 2.16 | H111: 192.18 | I111: 415.11
B112: 4.5 | E112: RESERVATÓRIO ELEVADO - RED 40M³ | I112: =SUM(I113:I127) -> 141343.94
B113: 4.5.1 | C113: 94966 | D113: SINAPI | E113: CONCRETO FCK = 30MPA, TRAÇO 1:2,1:2,5 (EM MASSA SECA DE CIMENTO/ AREIA MÉDIA/ BRITA 1) - PREPARO MECÂNICO COM BETONEIRA 400 L. AF_05/2021 | F113: M³ | G113: 28.8 | H113: 701.83 | I113: =ROUND(G113*H113,2) -> 20212.7
B114: 4.5.2 | C114: SIAA-44 | D114: PRÓPRIO | E114: BASE PARA 2 RESERVATÓRIO 15 OU 20 M³ (FUSTE=12M) | F114: UN | G114: 1 | H114: 66059.42 | I114: 66059.42
B115: 4.5.3 | C115: 5651 | D115: SINAPI | E115: FORMA TABUA PARA CONCRETO EM FUNDACAO C/ REAPROVEITAMENTO 5X | F115: M² | G115: 19.2 | H115: 77.18 | I115: 1481.86
B116: 4.5.4 | C116: 103684 | D116: SINAPI | E116: CONCRETAGEM DE RESERVATÓRIOS, FCK=25 MPA, COM USO DE BOMBA - LANÇAMENTO, ADENSAMENTO E ACABAMENTO. AF_02/2022_PS | F116: M³ | G116: 28.8 | H116: 880.64 | I116: 25362.43
B117: 4.5.5 | C117: 11266 | D117: ORSE | E117: ARMACAO ACO CA-50 DIAM.16,0 (5/8) À 25,0MM (1) - FORNECIMENTO/ CORTE(PERDA DE 10%) / DOBRA / COLOCAÇÃO. - REV 01 | F117: KG | G117: 1022.1 | H117: 16.39 | I117: 16752.22
B118: 4.5.6 | C118: 92921 | D118: SINAPI | E118: ARMAÇÃO DE ESTRUTURAS DIVERSAS DE CONCRETO ARMADO, EXCETO VIGAS, PILARES, LAJES E FUNDAÇÕES, UTILIZANDO AÇO CA-50 DE 12,5 MM - MONTAGEM. AF_06/2022 | F118: KG | G118: 530.97 | H118: 13.29 | I118: 7056.59
B119: 4.5.7 | C119: 2497 | D119: ORSE | E119: ESCAVAÇÃO MANUAL DE VALA OU CAVA EM MATERIAL DE 1ª CATEGORIA, PROFUNDIDADE ATÉ 1,50M | F119: M³ | G119: 3.06 | H119: 64.19 | I119: 196.42
B120: 4.5.8 | C120: 2503 | D120: ORSE | E120: ESCAVAÇÃO COM RETRO-ESCAVADEIRA DE PNEUS, DE VALAS, EM MATERIAL DE 1ª CATEGORIA ATÉ 1,50M DE PROFUNDIDADE | F120: M³ | G120: 12.24 | H120: 8.81 | I120: 107.83
B121: 4.5.9 | C121: 2506 | D121: ORSE | E121: ESCAVAÇÃO COM RETRO-ESCAVADEIRA DE PNEUS, DE VALAS, EM MATERIAL DE 2ª CATEGORIA ATÉ 1,50M DE PROFUNDIDADE | F121: M³ | G121: 10.71 | H121: 11.9 | I121: 127.45
B122: 4.5.10 | C122: 05.01.55 | D122: EMBASA | E122: ESCAV. DE VALAS - AGUA - EM ROCHA BRANDA EXECUTADA ENTRE AS PROFUND. DE 0 A 2,00M, C/USO DE ROMPEDOR PNEUMATICO | F122: M³ | G122: 4.59 | H122: 64.56 | I122: 296.33
B123: 4.5.11 | C123: 74010/001 | D123: SINAPI | E123: CARGA E DESCARGA MECANICA DE SOLO UTILIZANDO CAMINHAO BASCULANTE 6,0M3/16T E PA CARREGADEIRA SOBRE PNEUS 128 HP, CAPACIDADE DA CAÇAMBA 1,7 A 2,8 M3, PESO OPERACIONAL 11632 KG | F123: M³ | G123: 37.44 | H123: 3.07 | I123: 114.94
B124: 4.5.12 | C124: 06.01.01 | D124: EMBASA | E124: CARGA E DESCARGA DE ROCHA | F124: M³ | G124: 4.59 | H124: 6.08 | I124: 27.91
B125: 4.5.13 | C125: 93594 | D125: SINAPI | E125: TRANSPORTE COM CAMINHÃO BASCULANTE DE 10 M³, EM VIA URBANA EM LEITO NATURAL (UNIDADE: TXKM). AF_07/2020 | F125: TXKM | G125: 705.64 | H125: 2.44 | I125: 1721.76
B126: 4.5.14 | C126: 83344 | D126: SINAPI | E126: ESPALHAMENTO DE MATERIAL EM BOTA FORA, COM UTILIZACAO DE TRATOR DE ESTEIRAS DE 165 HP | F126: M³ | G126: 42.03 | H126: 1.62 | I126: 68.09
B127: 4.5.15 | C127: SIAA-01 | D127: PRÓPRIO | E127: MONTAGEM DE BARRILETE DE 2 A 6" EM RESERVATÓRIO ELEVADO COM ALTURA ATÉ 25M | F127: UN | G127: 1 | H127: 1757.99 | I127: 1757.99
B128: 4.6 | E128: LEITOS DE SECAGEM | I128: =SUM(I129:I143) -> 74551.38
B129: 4.6.1 | C129: 73859/001 | D129: SINAPI | E129: DESMATAMENTO E LIMPEZA MECANIZADA DE TERRENO COM REMOCAO DE CAMADA VEGETAL, UTILIZANDO TRATOR DE ESTEIRAS | F129: M² | G129: 63.72 | H129: 0.24 | I129: =ROUND(G129*H129,2) -> 15.29
B130: 4.6.2 | C130: 73992/001 | D130: SINAPI | E130: LOCACAO CONVENCIONAL DE OBRA, ATRAVÉS DE GABARITO DE TABUAS CORRIDAS PONTALETADAS A CADA 1,50M, SEM REAPROVEITAMENTO | F130: M² | G130: 80.77 | H130: 23.54 | I130: 1901.33
B131: 4.6.3 | C131: 94974 | D131: SINAPI | E131: CONCRETO MAGRO PARA LASTRO, TRAÇO 1:4,5:4,5 (EM MASSA SECA DE CIMENTO/ AREIA MÉDIA/ BRITA 1) - PREPARO MANUAL. AF_05/2021 | F131: M³ | G131: 3.19 | H131: 598.75 | I131: 1910.01
B132: 4.6.4 | C132: 94966 | D132: SINAPI | E132: CONCRETO FCK = 30MPA, TRAÇO 1:2,1:2,5 (EM MASSA SECA DE CIMENTO/ AREIA MÉDIA/ BRITA 1) - PREPARO MECÂNICO COM BETONEIRA 400 L. AF_05/2021 | F132: M³ | G132: 23.06 | H132: 701.83 | I132: 16184.2
B133: 4.6.5 | C133: 5651 | D133: SINAPI | E133: FORMA TABUA PARA CONCRETO EM FUNDACAO C/ REAPROVEITAMENTO 5X | F133: M² | G133: 181.36 | H133: 77.18 | I133: 13997.36
B134: 4.6.6 | C134: 11266 | D134: ORSE | E134: ARMACAO ACO CA-50 DIAM.16,0 (5/8) À 25,0MM (1) - FORNECIMENTO/ CORTE(PERDA DE 10%) / DOBRA / COLOCAÇÃO. - REV 01 | F134: KG | G134: 1089.04 | H134: 16.39 | I134: 17849.37
B135: 4.6.7 | C135: 73816/001 | D135: SINAPI | E135: EXECUCAO DE DRENO COM TUBOS DE PVC CORRUGADO FLEXIVEL PERFURADO - DN 100 | F135: M | G135: 14.3 | H135: 50 | I135: 715
B136: 4.6.8 | C136: 10179 | D136: ORSE | E136: LASTRO DE BRITA 0 | F136: M³ | G136: 4.8 | H136: 234.54 | I136: 1125.79
B137: 4.6.9 | C137: 73902/001 | D137: SINAPI | E137: CAMADA DRENANTE COM BRITA NUM 3 | F137: M³ | G137: 4.8 | H137: 212.37 | I137: 1019.38
B138: 4.6.10 | C138: 83668 | D138: SINAPI | E138: CAMADA DRENANTE COM BRITA NUM 2 | F138: M³ | G138: 12 | H138: 220.25 | I138: 2643
B139: 4.6.11 | C139: 22.90.07 | D139: EMBASA | E139: (REVISADA) - CAMADA DE TIJOLO COM JUNTA DE 2.0CM PARA LEITO DE SECAGEM | F139: M² | G139: 48 | H139: 86.62 | I139: 4157.76
B140: 4.6.12 | C140: 2503 | D140: ORSE | E140: ESCAVAÇÃO COM RETRO-ESCAVADEIRA DE PNEUS, DE VALAS, EM MATERIAL DE 1ª CATEGORIA ATÉ 1,50M DE PROFUNDIDADE | F140: M³ | G140: 114.7 | H140: 8.81 | I140: 1010.51
B141: 4.6.13 | C141: 74010/001 | D141: SINAPI | E141: CARGA E DESCARGA MECANICA DE SOLO UTILIZANDO CAMINHAO BASCULANTE 6,0M3/16T E PA CARREGADEIRA SOBRE PNEUS 128 HP, CAPACIDADE DA CAÇAMBA 1,7 A 2,8 M3, PESO OPERACIONAL 11632 KG | F141: M³ | G141: 149.1 | H141: 3.07 | I141: 457.74
B142: 4.6.14 | C142: 93594 | D142: SINAPI | E142: TRANSPORTE COM CAMINHÃO BASCULANTE DE 10 M³, EM VIA URBANA EM LEITO NATURAL (UNIDADE: TXKM). AF_07/2020 | F142: TXKM | G142: 2534.78 | H142: 2.44 | I142: 6184.86
B143: 4.6.15 | C143: 73963/008 | D143: SINAPI | E143: POCO DE VISITA PARA REDE DE ESG. SANIT., EM ANEIS DE CONCRETO, DIÂMETRO = 60CM E 110CM, PROF = 160CM, EXCLUINDO TAMPAO FERRO FUNDIDO. | F143: UN | G143: 2 | H143: 2689.89 | I143: 5379.78
B144: 5.0 | E144: UNIDADE DO SISTEMA: ESTAÇÃO ELEVATÓRIA DE ÁGUA | I144: =I145+I161 -> 119253.71
B145: 5.1 | E145: ESTAÇÃO ELEVATÓRIA DE ÁGUA TRATADA - OBRAS CIVIS | I145: =SUM(I146:I160) -> 77841.35
B146: 5.1.1 | C146: 73859/001 | D146: SINAPI | E146: DESMATAMENTO E LIMPEZA MECANIZADA DE TERRENO COM REMOCAO DE CAMADA VEGETAL, UTILIZANDO TRATOR DE ESTEIRAS | F146: M² | G146: 46.72 | H146: 0.24 | I146: =ROUND(G146*H146,2) -> 11.21
B147: 5.1.2 | C147: 73992/001 | D147: SINAPI | E147: LOCACAO CONVENCIONAL DE OBRA, ATRAVÉS DE GABARITO DE TABUAS CORRIDAS PONTALETADAS A CADA 1,50M, SEM REAPROVEITAMENTO | F147: M² | G147: 61.42 | H147: 23.54 | I147: 1445.83
B148: 5.1.3 | C148: 94974 | D148: SINAPI | E148: CONCRETO MAGRO PARA LASTRO, TRAÇO 1:4,5:4,5 (EM MASSA SECA DE CIMENTO/ AREIA MÉDIA/ BRITA 1) - PREPARO MANUAL. AF_05/2021 | F148: M³ | G148: 2.34 | H148: 598.75 | I148: 1401.08
B149: 5.1.4 | C149: 94966 | D149: SINAPI | E149: CONCRETO FCK = 30MPA, TRAÇO 1:2,1:2,5 (EM MASSA SECA DE CIMENTO/ AREIA MÉDIA/ BRITA 1) - PREPARO MECÂNICO COM BETONEIRA 400 L. AF_05/2021 | F149: M³ | G149: 13.69 | H149: 701.83 | I149: 9608.05
B150: 5.1.5 | C150: 09.09.07 | D150: EMBASA | E150: (REVISADA) FORMA PLANA EM COMP. RESINADO P/ ESTRUTURA E=12 ATE 3X | F150: M² | G150: 115.79 | H150: 145.22 | I150: 16815.02
B151: 5.1.6 | C151: 92921 | D151: SINAPI | E151: ARMAÇÃO DE ESTRUTURAS DIVERSAS DE CONCRETO ARMADO, EXCETO VIGAS, PILARES, LAJES E FUNDAÇÕES, UTILIZANDO AÇO CA-50 DE 12,5 MM - MONTAGEM. AF_06/2022 | F151: KG | G151: 1232.28 | H151: 13.29 | I151: 16377
B152: 5.1.7 | C152: 87482 | D152: SINAPI | E152: ALVENARIA DE VEDAÇÃO DE BLOCOS CERÂMICOS FURADOS NA VERTICAL DE 19X19X39CM (ESPESSURA 19CM) DE PAREDES COM ÁREA LÍQUIDA MAIOR OU IGUAL A 6M² SEM VÃOS E ARGAMASSA DE ASSENTAMENTO COM PREPARO MANUAL. AF_06/2014 | F152: M² | G152: 56.62 | H152: 110.22 | I152: 6240.66
B153: 5.1.8 | C153: 89173 | D153: SINAPI | E153: (COMPOSIÇÃO REPRESENTATIVA) DO SERVIÇO DE EMBOÇO/MASSA ÚNICA, APLICADO MANUALMENTE, TRAÇO 1:2:8, EM BETONEIRA DE 400L, PAREDES INTERNAS, COM EXECUÇÃO DE TALISCAS, EDIFICAÇÃO HABITACIONAL UNIFAMILIAR (CASAS) E EDIFICAÇÃO PÚBLICA PADRÃO. AF_12/2014 | F153: M² | G153: 60.61 | H153: 55.57 | I153: 3368.1
B154: 5.1.9 | C154: 87794 | D154: SINAPI | E154: EMBOÇO OU MASSA ÚNICA EM ARGAMASSA TRAÇO 1:2:8, PREPARO MANUAL, APLICADA MANUALMENTE EM PANOS CEGOS DE FACHADA (SEM PRESENÇA DE VÃOS), ESPESSURA DE 25 MM. AF_09/2022 | F154: M² | G154: 64.27 | H154: 58.4 | I154: 3753.37
B155: 5.1.10 | C155: 15.07.01 | D155: EMBASA | E155: PINTURA A BASE DE CONSERVADO P, OU SIMILAR P/ CAIACAO, INCL. LIXAMENTO | F155: M² | G155: 128.54 | H155: 13.27 | I155: 1705.73
B156: 5.1.11 | C156: 2497 | D156: ORSE | E156: ESCAVAÇÃO MANUAL DE VALA OU CAVA EM MATERIAL DE 1ª CATEGORIA, PROFUNDIDADE ATÉ 1,50M | F156: M³ | G156: 7.01 | H156: 64.19 | I156: 449.97
B157: 5.1.12 | C157: 198 | D157: ORSE | E157: MADEIRAMENTO EM MASSARANDUBA/MADEIRA DE LEI, ACABAMENTO APARELHADO, C/ RIPÃO 5 X 3 CM E RIPA 4 X 1,5CM, EXCLUSIVE PEÇAS PRINCIPAIS | F157: M² | G157: 46.72 | H157: 138.63 | I157: 6476.79
B158: 5.1.13 | C158: 15.02.13 | D158: EMBASA | E158: COBERTURA C/ TELHA CERAMICA TIPO CANAL C/ MADEIRAMENTO, INCL. ELEMENTOS P/ FIXACAO | F158: M² | G158: 46.72 | H158: 171.64 | I158: 8019.02
B159: 5.1.14 | C159: 9290 | D159: ORSE | E159: PORTÃO DE FERRO DE ABRIR, QUADRO EM TUBO DE AÇO GALV.1 1/2", BARRA QUADRADA 1/2" NA VERTICAL E BARRA CHATA DE 1 X 3/16" NA HORIZONTAL, INCLUSIVE DOBRADIÇAS E E FERROLHO | F159: M² | G159: 2.52 | H159: 479.61 | I159: 1208.62
B160: 5.1.15 | C160: 73937/001 | D160: SINAPI | E160: COBOGO DE CONCRETO (ELEMENTO VAZADO), 7X50X50CM, ASSENTADO COM ARGAMASSA TRACO 1:4 (CIMENTO E AREIA) | F160: M² | G160: 5 | H160: 192.18 | I160: 960.9
B161: 5.2 | E161: RESERVATÓRIO APOIADO - 20M³ | I161: =SUM(I162:I170) -> 41412.36
B162: 5.2.1 | C162: 94974 | D162: SINAPI | E162: CONCRETO MAGRO PARA LASTRO, TRAÇO 1:4,5:4,5 (EM MASSA SECA DE CIMENTO/ AREIA MÉDIA/ BRITA 1) - PREPARO MANUAL. AF_05/2021 | F162: M³ | G162: 1 | H162: 598.75 | I162: =ROUND(G162*H162,2) -> 598.75
B163: 5.2.2 | C163: 94966 | D163: SINAPI | E163: CONCRETO FCK = 30MPA, TRAÇO 1:2,1:2,5 (EM MASSA SECA DE CIMENTO/ AREIA MÉDIA/ BRITA 1) - PREPARO MECÂNICO COM BETONEIRA 400 L. AF_05/2021 | F163: M³ | G163: 9.2 | H163: 701.83 | I163: 6456.84
B164: 5.2.3 | C164: 09.09.07 | D164: EMBASA | E164: (REVISADA) FORMA PLANA EM COMP. RESINADO P/ ESTRUTURA E=12 ATE 3X | F164: M² | G164: 135 | H164: 145.22 | I164: 19604.7
B165: 5.2.4 | C165: 103673 | D165: SINAPI | E165: LANÇAMENTO COM USO DE BOMBA, ADENSAMENTO E ACABAMENTO DE CONCRETO EM ESTRUTURAS. AF_02/2022 | F165: M³ | G165: 9.2 | H165: 54.48 | I165: 501.22
B166: 5.2.5 | C166: 92921 | D166: SINAPI | E166: ARMAÇÃO DE ESTRUTURAS DIVERSAS DE CONCRETO ARMADO, EXCETO VIGAS, PILARES, LAJES E FUNDAÇÕES, UTILIZANDO AÇO CA-50 DE 12,5 MM - MONTAGEM. AF_06/2022 | F166: KG | G166: 920 | H166: 13.29 | I166: 12226.8
B167: 5.2.6 | C167: 2497 | D167: ORSE | E167: ESCAVAÇÃO MANUAL DE VALA OU CAVA EM MATERIAL DE 1ª CATEGORIA, PROFUNDIDADE ATÉ 1,50M | F167: M³ | G167: 2.18 | H167: 64.19 | I167: 139.93
B168: 5.2.7 | C168: 74010/001 | D168: SINAPI | E168: CARGA E DESCARGA MECANICA DE SOLO UTILIZANDO CAMINHAO BASCULANTE 6,0M3/16T E PA CARREGADEIRA SOBRE PNEUS 128 HP, CAPACIDADE DA CAÇAMBA 1,7 A 2,8 M3, PESO OPERACIONAL 11632 KG | F168: M³ | G168: 2.83 | H168: 3.07 | I168: 8.69
B169: 5.2.8 | C169: 93594 | D169: SINAPI | E169: TRANSPORTE COM CAMINHÃO BASCULANTE DE 10 M³, EM VIA URBANA EM LEITO NATURAL (UNIDADE: TXKM). AF_07/2020 | F169: TXKM | G169: 48.13 | H169: 2.44 | I169: 117.44
B170: 5.2.9 | C170: SIAA-01 | D170: PRÓPRIO | E170: MONTAGEM DE BARRILETE DE 2 A 6" EM RESERVATÓRIO ELEVADO COM ALTURA ATÉ 25M | F170: UN | G170: 1 | H170: 1757.99 | I170: 1757.99
B171: 6.0 | E171: INSTALAÇÃO ELÉTRICA | I171: =SUM(I172:I177) -> 201086.57
B172: 6.1 | C172: 3918 | D172: ORSE | E172: INSTALAÇÃO ELÉTRICA APARENTE/SIMPLIFICADA, P/ CASA DE 02 QUARTOS - PADRÃO SECPAST - REV - 01 | F172: UN | G172: 2 | H172: 2216.04 | I172: =ROUND(G172*H172,2) -> 4432.08
B173: 6.2 | C173: 492 | D173: ORSE | E173: QUADRO DISTRIBUIÇÃO EMBUTIR EM CHAPA DE AÇO, P/ATÉ 12 DISJUNTORES, TRIFASICO, C/BARRAMENTO, PADRÃO DIN (LINHA BRANCA), EXCLUSIVE DISJUNTORES | F173: UN | G173: 2 | H173: 670.89 | I173: 1341.78
B174: 6.3 | C174: 000069 | D174: SBC | E174: PROJETO INSTALACOES ELETRICAS ALTA TENSAO | F174: M² | G174: 1000 | H174: 28.1 | I174: 28100
B175: 6.4 | C175: PERFIL4 | D175: PRÓPRIO | E175: CCM PARA MOTORES 25 CV SENDO 3 COM SOFT STARTER E 1 COM INVERSOR DE FREQUÊNCIA | F175: UNID | G175: 1 | H175: 74948.68 | I175: 74948.68
B176: 6.5 | C176: 93666 | D176: SINAPI | E176: DISJUNTOR BIPOLAR TIPO DIN, CORRENTE NOMINAL DE 50A - FORNECIMENTO E INSTALAÇÃO. AF_10/2020 | F176: UN | G176: 12 | H176: 92 | I176: 1104
B177: 6.6 | C177: 151714 | D177: IOPES | E177: SUBESTAÇÃO EXT. AÉREA TRIFÁS. 150KVA, COMPLETA, C/ QUADROS DE MEDIÇÃO, TRANSF. A ÓLEO, CHAVE GERAL TRIP., POSTE E ACESSÓRIOS, CONF. NOR-TEC-01 DA ESCELSA, INCL. MURETA REV. C/ ARG. CIMENTO, CAL HIDRAT. CH1 E AREIA TRAÇO 1:0.5:6 | F177: UN | G177: 1 | H177: 91160.03 | I177: 91160.03
B178: 7.0 | E178: UNIDADE DO SISTEMA: ADUTORA DE ÁGUA TRATADA | I178: =I179+I203+I205 -> 8062485.33
B179: 7.1 | E179: ADUTORA DE ÁGUA TRATADA | I179: =SUM(I180:I202) -> 7741041.21
B180: 7.1.1 | C180: 73679 | D180: SINAPI | E180: LOCAÇÃO DE ADUTORAS, COLETORES TRONCO E INTERCEPTORES - ATÉ DN 500 MM | F180: M | G180: 50685.24 | H180: 1.99 | I180: =ROUND(G180*H180,2) -> 100863.63
B181: 7.1.2 | C181: 6098 | D181: ORSE | E181: CADASTRO DE REDES DE ÁGUA / ADUTORAS | F181: M | G181: 50685.24 | H181: 1.77 | I181: 89712.87
B182: 7.1.3 | C182: 2503 | D182: ORSE | E182: ESCAVAÇÃO COM RETRO-ESCAVADEIRA DE PNEUS, DE VALAS, EM MATERIAL DE 1ª CATEGORIA ATÉ 1,50M DE PROFUNDIDADE | F182: M³ | G182: 10635.25 | H182: 8.81 | I182: 93696.55
B183: 7.1.4 | C183: 2506 | D183: ORSE | E183: ESCAVAÇÃO COM RETRO-ESCAVADEIRA DE PNEUS, DE VALAS, EM MATERIAL DE 2ª CATEGORIA ATÉ 1,50M DE PROFUNDIDADE | F183: M³ | G183: 14180.34 | H183: 11.9 | I183: 168746.05
B184: 7.1.5 | C184: 05.01.64 | D184: EMBASA | E184: ESCAV. DE VALAS - AGUA - EM ROCHA SA, EXECUTADA ENTRE AS PROFUND.DE 0 A 2,00 M,C/ USO DE EXPLOSIVO,INCL.PROTECAO | F184: M³ | G184: 3924.61 | H184: 284.44 | I184: 1116316.07
B185: 7.1.6 | C185: 05.01.55 | D185: EMBASA | E185: ESCAV. DE VALAS - AGUA - EM ROCHA BRANDA EXECUTADA ENTRE AS PROFUND. DE 0 A 2,00M, C/USO DE ROMPEDOR PNEUMATICO | F185: M³ | G185: 8450.75 | H185: 64.56 | I185: 545580.42
B186: 7.1.7 | C186: 74010/001 | D186: SINAPI | E186: CARGA E DESCARGA MECANICA DE SOLO UTILIZANDO CAMINHAO BASCULANTE 6,0M3/16T E PA CARREGADEIRA SOBRE PNEUS 128 HP, CAPACIDADE DA CAÇAMBA 1,7 A 2,8 M3, PESO OPERACIONAL 11632 KG | F186: M³ | G186: 28360.67 | H186: 3.07 | I186: 87067.26
B187: 7.1.8 | C187: 06.01.01 | D187: EMBASA | E187: CARGA E DESCARGA DE ROCHA | F187: M³ | G187: 12156.3 | H187: 6.08 | I187: 73910.3
B188: 7.1.9 | C188: 93594 | D188: SINAPI | E188: TRANSPORTE COM CAMINHÃO BASCULANTE DE 10 M³, EM VIA URBANA EM LEITO NATURAL (UNIDADE: TXKM). AF_07/2020 | F188: TXKM | G188: 708956.91 | H188: 2.44 | I188: 1729854.86
B189: 7.1.10 | C189: 83344 | D189: SINAPI | E189: ESPALHAMENTO DE MATERIAL EM BOTA FORA, COM UTILIZACAO DE TRATOR DE ESTEIRAS DE 165 HP | F189: M³ | G189: 19553.35 | H189: 1.62 | I189: 31676.43
B190: 7.1.11 | C190: 94097 | D190: SINAPI | E190: PREPARO DE FUNDO DE VALA COM LARGURA MENOR QUE 1,5 M, EM LOCAL COM NÍVEL BAIXO DE INTERFERÊNCIA. AF_06/2016 | F190: M² | G190: 30411.14 | H190: 8.63 | I190: 262448.14
B191: 7.1.12 | C191: 05.99.91 | D191: EMBASA | E191: (REVISADA) - EXEC. DE ENVOLTORIA OU BERCO DE AREIA EM VALAS, INCL. LANCAM., ESPALHAM. E COMPACT. C/PLACA VIBRATORIA, SOQUETE PNEUMATICO OU SOQUETE MANUAL , C/ FORNEC. DOMAT. - DMT=20KM (MRR/RMS) | F191: M³ | G191: 15767.27 | H191: 177.8 | I191: 2803420.61
B192: 7.1.13 | C192: 05.94.01 | D192: EMBASA | E192: EXEC. DE ATERRO EM VALAS/POCOS/CAVAS DE FUNDACAO C/ SOLO PROVENIENTE DAS ESCAVACOES, INCL. LANCAM., ESPALHAM., COMPACT. C/ PLACA VIBRAT., SOQUETE PNEUMATICOOU SOQUETE MANUAL (MRR / MRS) | F192: M³ | G192: 10635.25 | H192: 22.42 | I192: 238442.31
B193: 7.1.14 | C193: 13.01.01 | D193: EMBASA | E193: CARGA E DESCARGA DE TUBOS PVC RIG. / RPVC / PRFV / PEAD, DN ATE 350 MM | F193: M | G193: 50685.24 | H193: 0.19 | I193: 9630.2
B194: 7.1.15 | C194: 13.04.01 | D194: EMBASA | E194: MOMENTO DE TRANSPORTE P/TUBOS, PECAS E CONEXOES DE PVC RIG./RPVC / PRFV / PEAD C/DN ATE 350MM (DISTANCIA ATE 30KM) | F194: MXK | G194: 1267131 | H194: 0.02 | I194: 25342.62
B195: 7.1.16 | C195: 12.03.07 | D195: EMBASA | E195: ASSENT. DE TUBOS E CONEXOES EM PVC RIG.PBA,PB JE- AGUA - DN 75 MM | F195: M | G195: 7041.86 | H195: 3.9 | I195: 27463.25
B196: 7.1.17 | C196: 12.03.10 | D196: EMBASA | E196: ASSENT. DE TUBOS E CONEXOES EM PVC RIG. PBA, PB JE E RPVC PB JE- AGUA - DN 100MM | F196: M | G196: 4265.94 | H196: 4.02 | I196: 17149.08
B197: 7.1.18 | C197: 12.03.16 | D197: EMBASA | E197: ASSENT. DE TUBOS E CONEXOES EM PVC RIG. DEFºFº E RPVC PB JE- AGUA - DN 150 MM | F197: M | G197: 699.2 | H197: 4.73 | I197: 3307.22
B198: 7.1.19 | C198: 12.03.19 | D198: EMBASA | E198: ASSENT. DE TUBOS E CONEXOES EM PVC RIG. DEFºFº E RPVC PB JE- AGUA - DN 200 MM | F198: M | G198: 10284.24 | H198: 5.09 | I198: 52346.78
B199: 7.1.20 | C199: 12.03.22 | D199: EMBASA | E199: ASSENT. DE TUBOS E CONEXOES EM PVC RIG. DEFºFº E RPVC PB JE- AGUA - DN 250 MM | F199: M | G199: 13298 | H199: 5.45 | I199: 72474.1
B200: 7.1.21 | C200: 12.03.25 | D200: EMBASA | E200: ASSENT. DE TUBOS E CONEXOES EM PVC RIG. DEFºFº E RPVC PB JE- AGUA - DN 300 MM | F200: M | G200: 14736 | H200: 6.05 | I200: 89152.8
... 389 more rows
